Workbook

Sheet Input
A2: Warning: enable macros before start using the worksheet.
A3: Taxable Income of Corporation(pre-bonuses) | C3: 500000
A4: SBD Limit | C4: 500000
A5: Opening GRIP | C5: 100000
A7: Scenario 1: Salary [all income paid by bonus to one shareholder with no other income] | E7: Scenario 2: Dividends [all income paid by dividends to one shareholder with no other income]
A9: Corporate Tax High Rate | B9: =Calculation!K77 -> 0 | E9: Corporate Tax High Rate | G9: =Calculation!O77 -> 0
A10: Corporate Tax Low Rate | B10: =Calculation!K76 -> 0 | E10: Corporate Tax Low Rate | G10: =Calculation!O76 -> 61000
A11: Personal tax | B11: =Calculation!T80 -> 228718.2953 | E11: Personal tax | G11: =Calculation!O67 -> 162441.3035
A12: Total Tax | C12: =SUM(B9:B11) -> 228718.2953 | E12: Total Tax | H12: =SUM(G9:G11) -> 223441.3035
A13: Overall Tax Rate | C13: =B11/C3 -> 0.4574365906 | E13: Overall Tax Rate | H13: =H12/C3 -> 0.446882607
E14: GRIP Balance Remaining | H14: =Calculation!O95 -> 0
A15: Caution: ignores EHT, CPP, EI and RRSP | E15: The allocation of dividends between eligible and non-eligible dividends is done to maximize eligible dividends based on the GRIP balance available at year end.
A17: Scenario 3: Salary/Dividend Combination [6 shareholders] | E17: Please enter the income distributions between shareholders for Scenario 3.
B18: Actual amounts paid | F18: Remaining value available for distribution6 | G18: Taxpayer 1 | H18: Taxpayer 2 | I18: Taxpayer 3 | J18: Taxpayer 4 | K18: Taxpayer 5 | L18: Taxpayer 6 | M18: Total
A19: Salary | B19: =M20 -> 0
A20: Eligible dividend | B20: ='Calc corp tax comb'!I35 -> 0 | E20: Salary | F20: =ROUNDDOWN('Calc corp tax comb'!B54,0) -> 500000 | G20: 0 | H20: 0 | I20: 0 | J20: 0 | K20: 0 | L20: 0 | M20: =SUM(G20:L20) -> 0
A21: Non-eligible dividend | B21: ='Calc corp tax comb'!I36 -> 0 | E21: Dividends3 - actual | F21: =ROUNDDOWN(C3-M20-M21-'Calc corp tax comb'!B16,0) -> 439000 | G21: 0 | H21: 0 | I21: 0 | J21: 0 | K21: 0 | L21: 0 | M21: =SUM(G21:L21) -> 0
E22: -Eligible dividend | G22: =+'Calc corp tax comb'!C35 -> 0 | H22: =+'Calc corp tax comb'!D35 -> 0 | I22: =+'Calc corp tax comb'!E35 -> 0 | J22: =+'Calc corp tax comb'!F35 -> 0 | K22: =+'Calc corp tax comb'!G35 -> 0 | L22: =+'Calc corp tax comb'!H35 -> 0 | M22: =+SUM(G22:L22) -> 0
A23: Corporate Tax High Rate | B23: ='Calc corp tax comb'!B15 -> 0 | E23: -Non-eligible dividend | G23: =+'Calc corp tax comb'!C36 -> 0 | H23: =+'Calc corp tax comb'!D36 -> 0 | I23: =+'Calc corp tax comb'!E36 -> 0 | J23: =+'Calc corp tax comb'!F36 -> 0 | K23: =+'Calc corp tax comb'!G36 -> 0 | L23: =+'Calc corp tax comb'!H36 -> 0 | M23: =SUM(G23:L23) -> 0
A24: Corporate Tax Low Rate | B24: ='Calc corp tax comb'!B14 -> 61000 | E24: Income from other sources | G24: 0 | H24: 0 | I24: 0 | J24: 0 | K24: 0 | L24: 0 | M24: =SUM(G24:L24) -> 0
A25: Personal tax | B25: =Calculation!DB67 -> 0
A26: Total Tax | C26: =SUM(B23:B25) -> 61000 | E26: Total actual income | G26: =+SUM(G20,G21,G24) -> 0 | H26: =+SUM(H20,H21,H24) -> 0 | I26: 0 | J26: 0 | K26: 0 | L26: 0 | M26: =SUM(G26:L26) -> 0
A27: Overall Tax Rate | C27: =C26/C3 -> 0.122
E28: Deductions
A29: Cash retained in the company | C29: =ROUNDDOWN('Calc corp tax comb'!B68, 0) -> 439000 | E29: RRSP | G29: 0 | H29: 0 | I29: 0 | J29: 0 | K29: 0 | L29: 0
A30: Income tax deferral 1 | C30: =ROUNDDOWN('Calc corp tax comb'!B77,0) -> 201178 | E30: Other deductions | G30: 0 | H30: 0 | I30: 0 | J30: 0 | K30: 0 | L30: 0
E31: Total actual income | G31: =G26-SUM(G29:G30) -> 0 | H31: 0 | I31: 0 | J31: 0 | K31: 0 | L31: 0
A32: Savings from income splitting and other deductions/credits/other income2 | C32: =Calculation!AF67-B25 -> 0 | E32: Taxable income (including gross up) | G32: =+Calculation!AK19 -> 0 | H32: =+Calculation!AW19 -> 0 | I32: =+Calculation!BI19 -> 0 | J32: =Calculation!BU19 -> 0 | K32: =+Calculation!CG19 -> 0 | L32: =Calculation!CS19 -> 0
A33: GRIP balance remaining | C33: ='Calc corp tax comb'!B28 -> 100000
A35: 1. Income tax deferral is calculated assuming all cash retained in the corporation will be repaid as optimal combination of eligible and non-eligible dividends to one shareholder using highest 2021 marginal tax rates) | E35: Donations (actual amount) | G35: 0 | H35: 0 | I35: 0 | J35: 0 | K35: 0 | L35: 0
E36: Tuitions (actual amount) | G36: 0 | H36: 0 | I36: 0 | J36: 0 | K36: 0 | L36: 0
E37: Other personal credits (Fed)4 | G37: 0 | H37: 0 | I37: 0 | J37: 0 | K37: 0 | L37: 0
E38: Other personal credits (Ont)4 | G38: 0 | H38: 0 | I38: 0 | J38: 0 | K38: 0 | L38: 0
A40: 2. Saving from income splitting is calculated compared to the personal taxes paid by Taxpayer 1 if he/she received all dividends and salary. Savings from other deductions/credits represents the combined savings of all shareholders for using other deductions and personal credits as well as effects of the higher marginal tax rates because of other income. This assumes that Tax-On-Split-Income (TOSI does not apply) | E40: Personal taxes5 | G40: =Calculation!AR67 -> 0 | H40: =Calculation!BD67 -> 0 | I40: =Calculation!BP67 -> 0 | J40: =Calculation!CB67 -> 0 | K40: =Calculation!CN67 -> 0 | L40: =+Calculation!CZ67 -> 0 | M40: =SUM(G40:L40) -> 0
E41: Cash withdrawn | G41: =+G20+G21-G40 -> 0 | H41: 0 | I41: =+I20+I21-I40 -> 0 | J41: 0 | K41: 0 | L41: 0 | M41: =SUM(G41:L41) -> 0
E42: 3. The allocation of dividends between eligible and non-eligible dividends is done to maximize eligible dividends based on the GRIP balance available at year end and allocated pro-rata. 4. Please, enter the amount before the applicable rate. Please note that the basic personal amounts and employment tax credits are already included in previous calculations 5. Personal taxes are calculated only for dividends and salary paid from this corporation. Information regarding other income is used only for calculation of the personal tax brackets. Caution: the calculation ignores AMT, CPP, EI, Ontario Health Premium 6. Note, that the values remaining for distribution is calculated after the applicable corporate tax rates and therefore, represents the actual amount of cash that is available in the corporation for distribution.
A61: Working assumptions
A62: 2021 Ontario personal income tax rates.
A64: Disclaimer:
A65: Note that the calculations presented are for illustrative purposes only. Complete reliance cannot be placed on these calculations as they are approximate and do not cover all possible scenarios that may arise.
A66: The above calculation is prepared based on Federal and Ontario tax rates for 2021 year based on the rates available.
A67: Also, note that there are factors not considered in the calculation, i.e. any personal exemptions other than employment credit and basic personal credit, alternative minimum tax, RRSP deductions (unless entered), donations (unless entered), tuition (unless entered) EHT, CPP, EI, R&D 35% eligibility, Ontario Health Premium.
A68: TOSI is assumed not to apply in this model.

Sheet Calculation (hidden)
A1: Income | F1: =Input!C3 -> 500000
A2: SBD Income | F2: =Input!C4 -> 500000
A3: Openning Grip | F3: =Input!C5 -> 100000 | G3: Eligible dividends | L3: Dividends | Q3: Salary | V3: Combination (Master) | AA3: Combination (Master) | AF3: Combination Person taxes for corp | AH3: Combination (Taxpayer 1) | AM3: Other Income (Taxpayer 1) | AR3: Taxpayer 1 (Personal Taxes for Corp) | AT3: Combination (Taxpayer 2) | AY3: Other Income (Taxpayer 2) | BD3: Taxpayer 2 (Personal Taxes for Corp) | BF3: Combination (Taxpayer 3) | BK3: Other Income (Taxpayer 3) | BP3: Taxpayer 3 (Personal Taxes for Corp) | BR3: Combination (Taxpayer 4) | BW3: Other Income (Taxpayer 4) | CB3: Taxpayer 4 (Personal Taxes for Corp) | CD3: Combination (Taxpayer 5) | CI3: Other Income (Taxpayer 5) | CN3: Taxpayer 5 (Personal Taxes for Corp) | CP3: Combination (Taxpayer 6) | CU3: Other Income (Taxpayer 6) | CZ3: Taxpayer 6 (Personal Taxes for Corp)
B4: 2013 | G4: 2021 | L4: =$G$4 -> 2021 | Q4: 2021 | V4: =$G$4 -> 2021 | AA4: =$G$4 -> 2021 | AH4: =$G$4 -> 2021 | AM4: =$G$4 -> 2021 | AT4: =$G$4 -> 2021 | AY4: =$G$4 -> 2021 | BF4: =$G$4 -> 2021 | BK4: =$G$4 -> 2021 | BR4: =$G$4 -> 2021 | BW4: =$G$4 -> 2021 | CD4: =$G$4 -> 2021 | CI4: =$G$4 -> 2021 | CP4: =$G$4 -> 2021 | CU4: =$G$4 -> 2021 | DB4: Total
A6: Personal Tax
A8: Other income | Y8: =Input!G24 -> 0 | AD8: =Input!G24 -> 0 | AK8: =Input!G24 -> 0 | AP8: =Input!G24 -> 0 | AW8: =Input!H24 -> 0 | BB8: =Input!H24 -> 0 | BI8: =Input!I24 -> 0 | BN8: =Input!I24 -> 0 | BU8: =Input!J24 -> 0 | BZ8: =Input!J24 -> 0 | CG8: =Input!$K$24 -> 0 | CL8: =Input!$K$24 -> 0 | CS8: =Input!$L$24 -> 0 | CX8: =Input!$L$24 -> 0
A10: Salary | E10: 0 | J10: 0 | O10: 0 | T10: =F1 -> 500000 | Y10: =Input!M20 -> 0 | AD10: =Input!R20 -> 0 | AK10: =Input!G20 -> 0 | AW10: =Input!H20 -> 0 | BI10: =Input!I20 -> 0 | BU10: =Input!J20 -> 0 | CG10: =Input!$K$20 -> 0 | CS10: =Input!$L$20 -> 0
A12: Eligible dividend | E12: 73500 | J12: =F1*(1-0.265) -> 367500 | O12: =IF(MIN(O91,((F1-F2)*0.735+F2*0.878))>0,MIN(O91,((F1-F2)*0.735+F2*0.878)),0) -> 100000 | T12: 0 | Y12: ='Calc corp tax comb'!I35 -> 0 | AD12: ='Calc corp tax comb'!N35 -> 0 | AK12: ='Calc corp tax comb'!C35 -> 0 | AW12: ='Calc corp tax comb'!D35 -> 0 | BI12: ='Calc corp tax comb'!E35 -> 0 | BU12: ='Calc corp tax comb'!F35 -> 0 | CG12: ='Calc corp tax comb'!$G$35 -> 0 | CS12: ='Calc corp tax comb'!$H$35 -> 0
A13: Eligible dividend gross up | E13: =E12*38% -> 27930 | G13: 0.38 | J13: =J12*G13 -> 139650 | L13: 0.38 | O13: =O12*L13 -> 38000 | Q13: 0.38 | T13: =T12*Q13 -> 0 | V13: 0.38 | Y13: =Y12*V13 -> 0 | AA13: 0.38 | AD13: =AD12*AA13 -> 0 | AH13: 0.38 | AK13: =AK12*AH13 -> 0 | AM13: 0.38 | AT13: 0.38 | AW13: =AW12*AT13 -> 0 | BF13: 0.38 | BI13: =BI12*BF13 -> 0 | BK13: 0.38 | BR13: 0.38 | BU13: =BU12*BR13 -> 0 | BW13: 0.38 | CD13: 0.38 | CG13: =CG12*CD13 -> 0 | CI13: 0.38 | CP13: 0.38 | CS13: =CS12*CP13 -> 0 | CU13: 0.38
A14: Non-eligible Dividend | E14: 0 | J14: 0 | O14: =F1-O78-O12 -> 339000 | T14: 0 | Y14: ='Calc corp tax comb'!I36 -> 0 | AD14: ='Calc corp tax comb'!N36 -> 0 | AK14: ='Calc corp tax comb'!C36 -> 0 | AW14: ='Calc corp tax comb'!D36 -> 0 | BI14: ='Calc corp tax comb'!E36 -> 0 | BU14: ='Calc corp tax comb'!F36 -> 0 | CG14: ='Calc corp tax comb'!$G$36 -> 0 | CS14: ='Calc corp tax comb'!$H$36 -> 0
A15: Non-eligible dividend gross up | B15: 0.25 | E15: =E14*B15 -> 0 | G15: 0.15 | J15: =J14*G15 -> 0 | L15: =$G$15 -> 0.15 | O15: =O14*L15 -> 50850 | Q15: =$G$15 -> 0.15 | T15: =T14*Q15 -> 0 | V15: =$G$15 -> 0.15 | Y15: =Y14*V15 -> 0 | AA15: =$G$15 -> 0.15 | AD15: =AD14*AA15 -> 0 | AH15: =$G$15 -> 0.15 | AK15: =AK14*AH15 -> 0 | AM15: =$G$15 -> 0.15 | AT15: =$G$15 -> 0.15 | AW15: =AW14*AT15 -> 0 | BF15: =$G$15 -> 0.15 | BI15: =BI14*BF15 -> 0 | BK15: =$G$15 -> 0.15 | BR15: =$G$15 -> 0.15 | BU15: =BU14*BR15 -> 0 | BW15: =$G$15 -> 0.15 | CD15: =$G$15 -> 0.15 | CG15: =CG14*CD15 -> 0 | CI15: =$G$15 -> 0.15 | CP15: =$G$15 -> 0.15 | CS15: =CS14*CP15 -> 0 | CU15: =$G$15 -> 0.15
A17: Other deductions | Y17: =-Input!G30-Input!G29 -> 0 | AD17: =-Input!G30-Input!G29 -> 0 | AK17: =-Input!G30-Input!G29 -> 0 | AP17: =-Input!G30-Input!G29 -> 0 | AW17: =-Input!H30-Input!H29 -> 0 | BB17: =-Input!H30-Input!H29 -> 0 | BI17: =-Input!I30-Input!I29 -> 0 | BN17: =-Input!I30-Input!I29 -> 0 | BU17: =-Input!J30-Input!J29 -> 0 | BZ17: =-Input!J30-Input!J29 -> 0 | CG17: =-Input!K30-Input!K29 -> 0 | CL17: =-Input!K30-Input!K29 -> 0 | CS17: =-Input!L30-Input!L29 -> 0 | CX17: =-Input!L30-Input!L29 -> 0
A19: Taxable income | E19: =SUM(E10:E15) -> 101430 | J19: =SUM(J10:J18) -> 507150 | O19: =SUM(O10:O18) -> 527850 | T19: =SUM(T10:T18) -> 500000 | Y19: =SUM(Y8:Y18) -> 0 | AD19: =SUM(AD8:AD18) -> 0 | AK19: =SUM(AK7:AK18) -> 0 | AP19: =SUM(AP7:AP18) -> 0 | AW19: =SUM(AW7:AW18) -> 0 | BB19: =SUM(BB7:BB18) -> 0 | BI19: =SUM(BI7:BI18) -> 0 | BN19: =SUM(BN7:BN18) -> 0 | BU19: =SUM(BU7:BU18) -> 0 | BZ19: =SUM(BZ7:BZ18) -> 0 | CG19: =SUM(CG7:CG18) -> 0 | CL19: =SUM(CL7:CL18) -> 0 | CS19: =SUM(CS7:CS18) -> 0 | CX19: =SUM(CX7:CX18) -> 0
A21: Federal tax
B22: 0.15 | C22: 0 | D22: 43561 | E22: =IF(E19>D22,D22*B22,E19*B22) -> 6534.15 | G22: 0.15 | H22: 0 | I22: 49020 | J22: =IF(J19>I22,I22*G22,J19*G22) -> 7353 | L22: =G22 -> 0.15 | M22: 0 | N22: 49020 | O22: =IF(O19>N22,N22*L22,O19*L22) -> 7353 | Q22: =G22 -> 0.15 | R22: 0 | S22: 49020 | T22: =IF(T19>S22,S22*Q22,T19*Q22) -> 7353 | V22: =G22 -> 0.15 | W22: 0 | X22: 49020 | Y22: =IF(Y19>X22,X22*V22,Y19*V22) -> 0 | AA22: =Q22 -> 0.15 | AB22: 0 | AC22: 49020 | AD22: =IF(AD19>AC22,AC22*AA22,AD19*AA22) -> 0 | AH22: =$G$22 -> 0.15 | AI22: =$H$22 -> 0 | AJ22: =$I$22 -> 49020 | AK22: =IF(AK19>AJ22,AJ22*AH22,AK19*AH22) -> 0 | AM22: =$G$22 -> 0.15 | AN22: =$H$22 -> 0 | AO22: =$I$22 -> 49020 | AP22: =IF(AP19>AO22,AO22*AM22,AP19*AM22) -> 0 | AT22: =$G$22 -> 0.15 | AU22: =$H$22 -> 0 | AV22: =$I$22 -> 49020 | AW22: =IF(AW19>AV22,AV22*AT22,AW19*AT22) -> 0 | AY22: =$G$22 -> 0.15 | AZ22: =$H$22 -> 0 | BA22: =$I$22 -> 49020 | BB22: =IF(BB19>BA22,BA22*AY22,BB19*AY22) -> 0 | BF22: =$G$22 -> 0.15 | BG22: =$H$22 -> 0 | BH22: =$I$22 -> 49020 | BI22: =IF(BI19>BH22,BH22*BF22,BI19*BF22) -> 0 | BK22: =$G$22 -> 0.15 | BL22: =$H$22 -> 0 | BM22: =$I$22 -> 49020 | BN22: =IF(BN19>BM22,BM22*BK22,BN19*BK22) -> 0 | BR22: =$G$22 -> 0.15 | BS22: =$H$22 -> 0 | BT22: =$I$22 -> 49020 | BU22: =IF(BU19>BT22,BT22*BR22,BU19*BR22) -> 0 | BW22: =$G$22 -> 0.15 | BX22: =$H$22 -> 0 | BY22: =$I$22 -> 49020 | BZ22: =IF(BZ19>BY22,BY22*BW22,BZ19*BW22) -> 0 | CD22: =$G$22 -> 0.15 | CE22: =$H$22 -> 0 | CF22: =$I$22 -> 49020 | CG22: =IF(CG19>CF22,CF22*CD22,CG19*CD22) -> 0 | CI22: =$G$22 -> 0.15 | CJ22: =$H$22 -> 0 | CK22: =$I$22 -> 49020 | CL22: =IF(CL19>CK22,CK22*CI22,CL19*CI22) -> 0 | CP22: =$G$22 -> 0.15 | CQ22: =$H$22 -> 0 | CR22: =$I$22 -> 49020 | CS22: =IF(CS19>CR22,CR22*CP22,CS19*CP22) -> 0 | CU22: =$G$22 -> 0.15 | CV22: =$H$22 -> 0 | CW22: =$I$22 -> 49020 | CX22: =IF(CX19>CW22,CW22*CU22,CX19*CU22) -> 0
B23: 0.22 | C23: 43562 | D23: 87123 | E23: =IF(E$19>D23,(D23-C23)*B23,IF(E$19<D23,IF(E$19>C23,(E$19-C23)*B23,0),0)) -> 9583.42 | G23: 0.205 | H23: =+I22+1 -> 49021 | I23: 98040 | J23: =IF(J$19>=I23,(I23-H23)*G23,IF(J$19<I23,IF(J$19>H23,(J$19-H23)*G23,0),0)) -> 10048.895 | L23: 0.205 | M23: 49021 | N23: 98040 | O23: =IF(O$19>=N23,(N23-M23)*L23,IF(O$19<N23,IF(O$19>M23,(O$19-M23)*L23,0),0)) -> 10048.895 | Q23: 0.205 | R23: 49021 | S23: 98040 | T23: =IF(T$19>=S23,(S23-R23)*Q23,IF(T$19<S23,IF(T$19>R23,(T$19-R23)*Q23,0),0)) -> 10048.895 | V23: 0.205 | W23: 49021 | X23: 98040 | Y23: =IF(Y$19>=X23,(X23-W23)*V23,IF(Y$19<X23,IF(Y$19>W23,(Y$19-W23)*V23,0),0)) -> 0 | AA23: 0.205 | AB23: 49021 | AC23: 98040 | AD23: =IF(AD$19>=AC23,(AC23-AB23)*AA23,IF(AD$19<AC23,IF(AD$19>AB23,(AD$19-AB23)*AA23,0),0)) -> 0 | AH23: =$G$23 -> 0.205 | AI23: =$H$23 -> 49021 | AJ23: =$I$23 -> 98040 | AK23: =IF(AK$19>=AJ23,(AJ23-AI23)*AH23,IF(AK$19<AJ23,IF(AK$19>AI23,(AK$19-AI23)*AH23,0),0)) -> 0 | AM23: =$G$23 -> 0.205 | AN23: =$H$23 -> 49021 | AO23: =$I$23 -> 98040 | AP23: =IF(AP$19>=AO23,(AO23-AN23)*AM23,IF(AP$19<AO23,IF(AP$19>AN23,(AP$19-AN23)*AM23,0),0)) -> 0 | AT23: =$G$23 -> 0.205 | AU23: =$H$23 -> 49021 | AV23: =$I$23 -> 98040 | AW23: =IF(AW$19>=AV23,(AV23-AU23)*AT23,IF(AW$19<AV23,IF(AW$19>AU23,(AW$19-AU23)*AT23,0),0)) -> 0 | AY23: =$G$23 -> 0.205 | AZ23: =$H$23 -> 49021 | BA23: =$I$23 -> 98040 | BB23: =IF(BB$19>=BA23,(BA23-AZ23)*AY23,IF(BB$19<BA23,IF(BB$19>AZ23,(BB$19-AZ23)*AY23,0),0)) -> 0 | BF23: =$G$23 -> 0.205 | BG23: =$H$23 -> 49021 | BH23: =$I$23 -> 98040 | BI23: =IF(BI$19>=BH23,(BH23-BG23)*BF23,IF(BI$19<BH23,IF(BI$19>BG23,(BI$19-BG23)*BF23,0),0)) -> 0 | BK23: =$G$23 -> 0.205 | BL23: =$H$23 -> 49021 | BM23: =$I$23 -> 98040 | BN23: =IF(BN$19>=BM23,(BM23-BL23)*BK23,IF(BN$19<BM23,IF(BN$19>BL23,(BN$19-BL23)*BK23,0),0)) -> 0 | BR23: =$G$23 -> 0.205 | BS23: =$H$23 -> 49021 | BT23: =$I$23 -> 98040 | BU23: =IF(BU$19>=BT23,(BT23-BS23)*BR23,IF(BU$19<BT23,IF(BU$19>BS23,(BU$19-BS23)*BR23,0),0)) -> 0 | BW23: =$G$23 -> 0.205 | BX23: =$H$23 -> 49021 | BY23: =$I$23 -> 98040 | BZ23: =IF(BZ$19>=BY23,(BY23-BX23)*BW23,IF(BZ$19<BY23,IF(BZ$19>BX23,(BZ$19-BX23)*BW23,0),0)) -> 0 | CD23: =$G$23 -> 0.205 | CE23: =$H$23 -> 49021 | CF23: =$I$23 -> 98040 | CG23: =IF(CG$19>=CF23,(CF23-CE23)*CD23,IF(CG$19<CF23,IF(CG$19>CE23,(CG$19-CE23)*CD23,0),0)) -> 0 | CI23: =$G$23 -> 0.205 | CJ23: =$H$23 -> 49021 | CK23: =$I$23 -> 98040 | CL23: =IF(CL$19>=CK23,(CK23-CJ23)*CI23,IF(CL$19<CK23,IF(CL$19>CJ23,(CL$19-CJ23)*CI23,0),0)) -> 0 | CP23: =$G$23 -> 0.205 | CQ23: =$H$23 -> 49021 | CR23: =$I$23 -> 98040 | CS23: =IF(CS$19>=CR23,(CR23-CQ23)*CP23,IF(CS$19<CR23,IF(CS$19>CQ23,(CS$19-CQ23)*CP23,0),0)) -> 0 | CU23: =$G$23 -> 0.205 | CV23: =$H$23 -> 49021 | CW23: =$I$23 -> 98040 | CX23: =IF(CX$19>=CW23,(CW23-CV23)*CU23,IF(CX$19<CW23,IF(CX$19>CV23,(CX$19-CV23)*CU23,0),0)) -> 0
B24: 0.26 | C24: 87124 | D24: 135054 | E24: =IF(E$19>D24,(D24-C24)*B24,IF(E$19<D24,IF(E$19>C24,(E$19-C24)*B24,0),0)) -> 3719.56 | G24: 0.26 | H24: =+I23+1 -> 98041 | I24: 151978 | J24: =IF(J$19>=I24,(I24-H24)*G24,IF(J$19<I24,IF(J$19>H24,(J$19-H24)*G24,0),0)) -> 14023.62 | L24: 0.26 | M24: 98041 | N24: 151978 | O24: =IF(O$19>=N24,(N24-M24)*L24,IF(O$19<N24,IF(O$19>M24,(O$19-M24)*L24,0),0)) -> 14023.62 | Q24: 0.26 | R24: 98041 | S24: 151978 | T24: =IF(T$19>=S24,(S24-R24)*Q24,IF(T$19<S24,IF(T$19>R24,(T$19-R24)*Q24,0),0)) -> 14023.62 | V24: 0.26 | W24: 98041 | X24: 151978 | Y24: =IF(Y$19>=X24,(X24-W24)*V24,IF(Y$19<X24,IF(Y$19>W24,(Y$19-W24)*V24,0),0)) -> 0 | AA24: 0.26 | AB24: 98041 | AC24: 151978 | AD24: =IF(AD$19>=AC24,(AC24-AB24)*AA24,IF(AD$19<AC24,IF(AD$19>AB24,(AD$19-AB24)*AA24,0),0)) -> 0 | AH24: =$G$24 -> 0.26 | AI24: =$H$24 -> 98041 | AJ24: =$I$24 -> 151978 | AK24: =IF(AK$19>=AJ24,(AJ24-AI24)*AH24,IF(AK$19<AJ24,IF(AK$19>AI24,(AK$19-AI24)*AH24,0),0)) -> 0 | AM24: =$G$24 -> 0.26 | AN24: =$H$24 -> 98041 | AO24: =$I$24 -> 151978 | AP24: =IF(AP$19>=AO24,(AO24-AN24)*AM24,IF(AP$19<AO24,IF(AP$19>AN24,(AP$19-AN24)*AM24,0),0)) -> 0 | AT24: =$G$24 -> 0.26 | AU24: =$H$24 -> 98041 | AV24: =$I$24 -> 151978 | AW24: =IF(AW$19>=AV24,(AV24-AU24)*AT24,IF(AW$19<AV24,IF(AW$19>AU24,(AW$19-AU24)*AT24,0),0)) -> 0 | AY24: =$G$24 -> 0.26 | AZ24: =$H$24 -> 98041 | BA24: =$I$24 -> 151978 | BB24: =IF(BB$19>=BA24,(BA24-AZ24)*AY24,IF(BB$19<BA24,IF(BB$19>AZ24,(BB$19-AZ24)*AY24,0),0)) -> 0 | BF24: =$G$24 -> 0.26 | BG24: =$H$24 -> 98041 | BH24: =$I$24 -> 151978 | BI24: =IF(BI$19>=BH24,(BH24-BG24)*BF24,IF(BI$19<BH24,IF(BI$19>BG24,(BI$19-BG24)*BF24,0),0)) -> 0 | BK24: =$G$24 -> 0.26 | BL24: =$H$24 -> 98041 | BM24: =$I$24 -> 151978 | BN24: =IF(BN$19>=BM24,(BM24-BL24)*BK24,IF(BN$19<BM24,IF(BN$19>BL24,(BN$19-BL24)*BK24,0),0)) -> 0 | BR24: =$G$24 -> 0.26 | BS24: =$H$24 -> 98041 | BT24: =$I$24 -> 151978 | BU24: =IF(BU$19>=BT24,(BT24-BS24)*BR24,IF(BU$19<BT24,IF(BU$19>BS24,(BU$19-BS24)*BR24,0),0)) -> 0 | BW24: =$G$24 -> 0.26 | BX24: =$H$24 -> 98041 | BY24: =$I$24 -> 151978 | BZ24: =IF(BZ$19>=BY24,(BY24-BX24)*BW24,IF(BZ$19<BY24,IF(BZ$19>BX24,(BZ$19-BX24)*BW24,0),0)) -> 0 | CD24: =$G$24 -> 0.26 | CE24: =$H$24 -> 98041 | CF24: =$I$24 -> 151978 | CG24: =IF(CG$19>=CF24,(CF24-CE24)*CD24,IF(CG$19<CF24,IF(CG$19>CE24,(CG$19-CE24)*CD24,0),0)) -> 0 | CI24: =$G$24 -> 0.26 | CJ24: =$H$24 -> 98041 | CK24: =$I$24 -> 151978 | CL24: =IF(CL$19>=CK24,(CK24-CJ24)*CI24,IF(CL$19<CK24,IF(CL$19>CJ24,(CL$19-CJ24)*CI24,0),0)) -> 0 | CP24: =$G$24 -> 0.26 | CQ24: =$H$24 -> 98041 | CR24: =$I$24 -> 151978 | CS24: =IF(CS$19>=CR24,(CR24-CQ24)*CP24,IF(CS$19<CR24,IF(CS$19>CQ24,(CS$19-CQ24)*CP24,0),0)) -> 0 | CU24: =$G$24 -> 0.26 | CV24: =$H$24 -> 98041 | CW24: =$I$24 -> 151978 | CX24: =IF(CX$19>=CW24,(CW24-CV24)*CU24,IF(CX$19<CW24,IF(CX$19>CV24,(CX$19-CV24)*CU24,0),0)) -> 0
B25: 0.29 | C25: 135055 | E25: =IF(E$19>C25,(E$19-C25)*B25,0) -> 0 | G25: 0.29 | H25: =+I24+1 -> 151979 | I25: 216511 | J25: =IF(J$19>=I25,(I25-H25)*G25,IF(J$19<I25,IF(J$19>H25,(J$19-H25)*G25,0),0)) -> 18714.28 | L25: 0.29 | M25: 151979 | N25: 216511 | O25: =IF(O$19>=N25,(N25-M25)*L25,IF(O$19<N25,IF(O$19>M25,(O$19-M25)*L25,0),0)) -> 18714.28 | Q25: 0.29 | R25: 151979 | S25: 216511 | T25: =IF(T$19>=S25,(S25-R25)*Q25,IF(T$19<S25,IF(T$19>R25,(T$19-R25)*Q25,0),0)) -> 18714.28 | V25: 0.29 | W25: 151979 | X25: 216511 | Y25: =IF(Y$19>=X25,(X25-W25)*V25,IF(Y$19<X25,IF(Y$19>W25,(Y$19-W25)*V25,0),0)) -> 0 | AA25: 0.29 | AB25: 151979 | AC25: 216511 | AD25: =IF(AD$19>=AC25,(AC25-AB25)*AA25,IF(AD$19<AC25,IF(AD$19>AB25,(AD$19-AB25)*AA25,0),0)) -> 0 | AH25: =$G$25 -> 0.29 | AI25: =$H$25 -> 151979 | AJ25: =$I$25 -> 216511 | AK25: =IF(AK$19>=AJ25,(AJ25-AI25)*AH25,IF(AK$19<AJ25,IF(AK$19>AI25,(AK$19-AI25)*AH25,0),0)) -> 0 | AM25: =$G$25 -> 0.29 | AN25: =$H$25 -> 151979 | AO25: =$I$25 -> 216511 | AP25: =IF(AP$19>=AO25,(AO25-AN25)*AM25,IF(AP$19<AO25,IF(AP$19>AN25,(AP$19-AN25)*AM25,0),0)) -> 0 | AT25: =$G$25 -> 0.29 | AU25: =$H$25 -> 151979 | AV25: =$I$25 -> 216511 | AW25: =IF(AW$19>=AV25,(AV25-AU25)*AT25,IF(AW$19<AV25,IF(AW$19>AU25,(AW$19-AU25)*AT25,0),0)) -> 0 | AY25: =$G$25 -> 0.29 | AZ25: =$H$25 -> 151979 | BA25: =$I$25 -> 216511 | BB25: =IF(BB$19>=BA25,(BA25-AZ25)*AY25,IF(BB$19<BA25,IF(BB$19>AZ25,(BB$19-AZ25)*AY25,0),0)) -> 0 | BF25: =$G$25 -> 0.29 | BG25: =$H$25 -> 151979 | BH25: =$I$25 -> 216511 | BI25: =IF(BI$19>=BH25,(BH25-BG25)*BF25,IF(BI$19<BH25,IF(BI$19>BG25,(BI$19-BG25)*BF25,0),0)) -> 0 | BK25: =$G$25 -> 0.29 | BL25: =$H$25 -> 151979 | BM25: =$I$25 -> 216511 | BN25: =IF(BN$19>=BM25,(BM25-BL25)*BK25,IF(BN$19<BM25,IF(BN$19>BL25,(BN$19-BL25)*BK25,0),0)) -> 0 | BR25: =$G$25 -> 0.29 | BS25: =$H$25 -> 151979 | BT25: =$I$25 -> 216511 | BU25: =IF(BU$19>=BT25,(BT25-BS25)*BR25,IF(BU$19<BT25,IF(BU$19>BS25,(BU$19-BS25)*BR25,0),0)) -> 0 | BW25: =$G$25 -> 0.29 | BX25: =$H$25 -> 151979 | BY25: =$I$25 -> 216511 | BZ25: =IF(BZ$19>=BY25,(BY25-BX25)*BW25,IF(BZ$19<BY25,IF(BZ$19>BX25,(BZ$19-BX25)*BW25,0),0)) -> 0 | CD25: =$G$25 -> 0.29 | CE25: =$H$25 -> 151979 | CF25: =$I$25 -> 216511 | CG25: =IF(CG$19>=CF25,(CF25-CE25)*CD25,IF(CG$19<CF25,IF(CG$19>CE25,(CG$19-CE25)*CD25,0),0)) -> 0 | CI25: =$G$25 -> 0.29 | CJ25: =$H$25 -> 151979 | CK25: =$I$25 -> 216511 | CL25: =IF(CL$19>=CK25,(CK25-CJ25)*CI25,IF(CL$19<CK25,IF(CL$19>CJ25,(CL$19-CJ25)*CI25,0),0)) -> 0 | CP25: =$G$25 -> 0.29 | CQ25: =$H$25 -> 151979 | CR25: =$I$25 -> 216511 | CS25: =IF(CS$19>=CR25,(CR25-CQ25)*CP25,IF(CS$19<CR25,IF(CS$19>CQ25,(CS$19-CQ25)*CP25,0),0)) -> 0 | CU25: =$G$25 -> 0.29 | CV25: =$H$25 -> 151979 | CW25: =$I$25 -> 216511 | CX25: =IF(CX$19>=CW25,(CW25-CV25)*CU25,IF(CX$19<CW25,IF(CX$19>CV25,(CX$19-CV25)*CU25,0),0)) -> 0
G26: 0.33 | H26: =+I25+1 -> 216512 | J26: =IF(J$19>=H26,(J$19-H26)*G26,0) -> 95910.54 | L26: 0.33 | M26: 216512 | N26: 0 | O26: =IF(O$19>=M26,(O$19-M26)*L26,0) -> 102741.54 | Q26: 0.33 | R26: 216512 | S26: 0 | T26: =IF(T$19>=R26,(T$19-R26)*Q26,0) -> 93551.04 | V26: 0.33 | W26: 216512 | X26: 0 | Y26: =IF(Y$19>=W26,(Y$19-W26)*V26,0) -> 0 | AA26: 0.33 | AB26: 216512 | AC26: 0 | AD26: =IF(AD$19>=AB26,(AD$19-AB26)*AA26,0) -> 0 | AH26: =$G$26 -> 0.33 | AI26: =$H$26 -> 216512 | AJ26: =$I$26 -> 0 | AK26: =IF(AK$19>=AI26,(AK$19-AI26)*AH26,0) -> 0 | AM26: =$G$26 -> 0.33 | AN26: =$H$26 -> 216512 | AO26: =$I$26 -> 0 | AP26: =IF(AP$19>=AN26,(AP$19-AN26)*AM26,0) -> 0 | AT26: =$G$26 -> 0.33 | AU26: =$H$26 -> 216512 | AV26: =$I$26 -> 0 | AW26: =IF(AW$19>=AU26,(AW$19-AU26)*AT26,0) -> 0 | AY26: =$G$26 -> 0.33 | AZ26: =$H$26 -> 216512 | BA26: =$I$26 -> 0 | BB26: =IF(BB$19>=AZ26,(BB$19-AZ26)*AY26,0) -> 0 | BF26: =$G$26 -> 0.33 | BG26: =$H$26 -> 216512 | BH26: =$I$26 -> 0 | BI26: =IF(BI$19>=BG26,(BI$19-BG26)*BF26,0) -> 0 | BK26: =$G$26 -> 0.33 | BL26: =$H$26 -> 216512 | BM26: =$I$26 -> 0 | BN26: =IF(BN$19>=BL26,(BN$19-BL26)*BK26,0) -> 0 | BR26: =$G$26 -> 0.33 | BS26: =$H$26 -> 216512 | BT26: =$I$26 -> 0 | BU26: =IF(BU$19>=BS26,(BU$19-BS26)*BR26,0) -> 0 | BW26: =$G$26 -> 0.33 | BX26: =$H$26 -> 216512 | BY26: =$I$26 -> 0 | BZ26: =IF(BZ$19>=BX26,(BZ$19-BX26)*BW26,0) -> 0 | CD26: =$G$26 -> 0.33 | CE26: =$H$26 -> 216512 | CF26: =$I$26 -> 0 | CG26: =IF(CG$19>=CE26,(CG$19-CE26)*CD26,0) -> 0 | CI26: =$G$26 -> 0.33 | CJ26: =$H$26 -> 216512 | CK26: =$I$26 -> 0 | CL26: =IF(CL$19>=CJ26,(CL$19-CJ26)*CI26,0) -> 0 | CP26: =$G$26 -> 0.33 | CQ26: =$H$26 -> 216512 | CR26: =$I$26 -> 0 | CS26: =IF(CS$19>=CQ26,(CS$19-CQ26)*CP26,0) -> 0 | CU26: =$G$26 -> 0.33 | CV26: =$H$26 -> 216512 | CW26: =$I$26 -> 0 | CX26: =IF(CX$19>=CV26,(CX$19-CV26)*CU26,0) -> 0
A28: Base federal tax | E28: =SUM(E22:E25) -> 19837.13 | J28: =SUM(J22:J26) -> 146050.335 | O28: =SUM(O22:O26) -> 152881.335 | T28: =SUM(T22:T26) -> 143690.835 | Y28: =SUM(Y22:Y26) -> 0 | AD28: =SUM(AD22:AD26) -> 0 | AK28: =SUM(AK22:AK26) -> 0 | AP28: =SUM(AP22:AP26) -> 0 | AW28: =SUM(AW22:AW26) -> 0 | BB28: =SUM(BB22:BB26) -> 0 | BI28: =SUM(BI22:BI26) -> 0 | BN28: =SUM(BN22:BN26) -> 0 | BU28: =SUM(BU22:BU26) -> 0 | BZ28: =SUM(BZ22:BZ26) -> 0 | CG28: =SUM(CG22:CG26) -> 0 | CL28: =SUM(CL22:CL26) -> 0 | CS28: =SUM(CS22:CS26) -> 0 | CX28: =SUM(CX22:CX26) -> 0
A30: Credits
A31: Personal tax credit | B31: 0.15 | C31: 11038 | E31: =-C31*B31 -> -1655.7 | G31: 0.15 | H31: =IF(J$19>=H26,12421,IF(J$19<H26,IF(J$19>H25,12421+((J19-H25)*((13808-12421)/(H26-H25))),13808),13808)) -> 12421 | J31: =-H31*G31 -> -1863.15 | L31: =G31 -> 0.15 | M31: =IF(O$19>=M26,12421,IF(O$19<M26,IF(O$19>M25,12421+((O19-M25)*((13808-12421)/(M26-M25))),13808),13808)) -> 12421 | O31: =-M31*L31 -> -1863.15 | Q31: =G31 -> 0.15 | R31: =IF(T$19>=R26,12421,IF(T$19<R26,IF(T$19>R25,12421+((T19-R25)*((13808-12421)/(R26-R25))),13808),13808)) -> 12421 | T31: =-R31*Q31 -> -1863.15 | V31: =G31 -> 0.15 | W31: =IF(Y$19>=W26,12421,IF(Y$19<W26,IF(Y$19>W25,12421+((Y19-W25)*((13808-12421)/(W26-W25))),13808),13808)) -> 13808 | Y31: =-W31*V31 -> -2071.2 | AA31: =$G$31 -> 0.15 | AB31: =IF(AD$19>=AB26,12421,IF(AD$19<AB26,IF(AD$19>AB25,12421+((AD19-AB25)*((13808-12421)/(AB26-AB25))),13808),13808)) -> 13808 | AD31: =-AB31*AA31 -> -2071.2 | AH31: =$G$31 -> 0.15 | AI31: =IF(AK$19>=AI26,12421,IF(AK$19<AI26,IF(AK$19>AI25,12421+((AK19-AI25)*((13808-12421)/(AI26-AI25))),13808),13808)) -> 13808 | AK31: =-AI31*AH31 -> -2071.2 | AM31: =$G$31 -> 0.15 | AN31: =IF(AP$19>=AN26,12421,IF(AP$19<AN26,IF(AP$19>AN25,12421+((AP19-AN25)*((13808-12421)/(AN26-AN25))),13808),13808)) -> 13808 | AP31: =-AN31*AM31 -> -2071.2 | AT31: =$G$31 -> 0.15 | AU31: =IF(AW$19>=AU26,12421,IF(AW$19<AU26,IF(AW$19>AU25,12421+((AW19-AU25)*((13808-12421)/(AU26-AU25))),13808),13808)) -> 13808 | AW31: =-AU31*AT31 -> -2071.2 | AY31: =$G$31 -> 0.15 | AZ31: =IF(BB$19>=AZ26,12421,IF(BB$19<AZ26,IF(BB$19>AZ25,12421+((BB19-AZ25)*((13808-12421)/(AZ26-AZ25))),13808),13808)) -> 13808 | BB31: =-AZ31*AY31 -> -2071.2 | BF31: =$G$31 -> 0.15 | BG31: =IF(BI$19>=BG26,12421,IF(BI$19<BG26,IF(BI$19>BG25,12421+((BI19-BG25)*((13808-12421)/(BG26-BG25))),13808),13808)) -> 13808 | BI31: =-BG31*BF31 -> -2071.2 | BK31: =$G$31 -> 0.15 | BL31: =IF(BN$19>=BL26,12421,IF(BN$19<BL26,IF(BN$19>BL25,12421+((BN19-BL25)*((13808-12421)/(BL26-BL25))),13808),13808)) -> 13808 | BN31: =-BL31*BK31 -> -2071.2 | BR31: =$G$31 -> 0.15 | BS31: =IF(BU$19>=BS26,12421,IF(BU$19<BS26,IF(BU$19>BS25,12421+((BU19-BS25)*((13808-12421)/(BS26-BS25))),13808),13808)) -> 13808 | BU31: =-BS31*BR31 -> -2071.2 | BW31: =$G$31 -> 0.15 | BX31: =IF(BZ$19>=BX26,12421,IF(BZ$19<BX26,IF(BZ$19>BX25,12421+((BZ19-BX25)*((13808-12421)/(BX26-BX25))),13808),13808)) -> 13808 | BZ31: =-BX31*BW31 -> -2071.2 | CD31: =$G$31 -> 0.15 | CE31: =IF(CG$19>=CE26,12421,IF(CG$19<CE26,IF(CG$19>CE25,12421+((CG19-CE25)*((13808-12421)/(CE26-CE25))),13808),13808)) -> 13808 | CG31: =-CE31*CD31 -> -2071.2 | CI31: =$G$31 -> 0.15 | CJ31: =IF(CL$19>=CJ26,12421,IF(CL$19<CJ26,IF(CL$19>CJ25,12421+((CL19-CJ25)*((13808-12421)/(CJ26-CJ25))),13808),13808)) -> 13808 | CL31: =-CJ31*CI31 -> -2071.2 | CP31: =$G$31 -> 0.15 | CQ31: =IF(CS$19>=CQ26,12421,IF(CS$19<CQ26,IF(CS$19>CQ25,12421+((CS19-CQ25)*((13808-12421)/(CQ26-CQ25))),13808),13808)) -> 13808 | CS31: =-CQ31*CP31 -> -2071.2 | CU31: =$G$31 -> 0.15 | CV31: =IF(CX$19>=CV26,12421,IF(CX$19<CV26,IF(CX$19>CV25,12421+((CX19-CV25)*((13808-12421)/(CV26-CV25))),13808),13808)) -> 13808 | CX31: =-CV31*CU31 -> -2071.2
A32: Canada employment amount | B32: 0.15 | C32: 1117 | E32: =-IF(E10>1117,C32*B32,0) -> 0 | G32: 0.15 | H32: 1257 | J32: =-IF(J10>H32,H32*G32,0) -> 0 | L32: 0.15 | M32: =H32 -> 1257 | O32: =-IF(O10>1117,M32*L32,0) -> 0 | Q32: 0.15 | R32: =H32 -> 1257 | T32: =-IF(T10>1117,R32*Q32,0) -> -188.55 | V32: 0.15 | W32: 1257 | Y32: =-IF(Y10>1117,W32*V32,0) -> 0 | AA32: =$G$32 -> 0.15 | AB32: =$H$32 -> 1257 | AD32: =-IF(AD10>1117,AB32*AA32,0) -> 0 | AH32: =$G$32 -> 0.15 | AI32: =$H$32 -> 1257 | AK32: =-IF(AK10>1117,AI32*AH32,0) -> 0 | AM32: =$G$32 -> 0.15 | AN32: =$H$32 -> 1257 | AP32: =-IF(AP10>1117,AN32*AM32,0) -> 0 | AT32: =$G$32 -> 0.15 | AU32: =$H$32 -> 1257 | AW32: =-IF(AW10>1117,AU32*AT32,0) -> 0 | AY32: =$G$32 -> 0.15 | AZ32: =$H$32 -> 1257 | BB32: =-IF(BB10>1117,AZ32*AY32,0) -> 0 | BF32: =$G$32 -> 0.15 | BG32: =$H$32 -> 1257 | BI32: =-IF(BI10>1117,BG32*BF32,0) -> 0 | BK32: =$G$32 -> 0.15 | BL32: =$H$32 -> 1257 | BN32: =-IF(BN10>1117,BL32*BK32,0) -> 0 | BR32: =$G$32 -> 0.15 | BS32: =$H$32 -> 1257 | BU32: =-IF(BU10>1117,BS32*BR32,0) -> 0 | BW32: =$G$32 -> 0.15 | BX32: =$H$32 -> 1257 | BZ32: =-IF(BZ10>1117,BX32*BW32,0) -> 0 | CD32: =$G$32 -> 0.15 | CE32: =$H$32 -> 1257 | CG32: =-IF(CG10>1117,CE32*CD32,0) -> 0 | CI32: =$G$32 -> 0.15 | CJ32: =$H$32 -> 1257 | CL32: =-IF(CL10>1117,CJ32*CI32,0) -> 0 | CP32: =$G$32 -> 0.15 | CQ32: =$H$32 -> 1257 | CS32: =-IF(CS10>1117,CQ32*CP32,0) -> 0 | CU32: =$G$32 -> 0.15 | CV32: =$H$32 -> 1257 | CX32: =-IF(CX10>1117,CV32*CU32,0) -> 0
A33: Dividend tax credit non-eligible | B33: 0.16666667 | C33: =E14 -> 0 | E33: =-C33*B33 -> 0 | G33: 0.090301 | H33: =SUM(J14:J15) -> 0 | J33: =-H33*G33 -> 0 | L33: 0.090301 | M33: =SUM(O14:O15) -> 389850 | O33: =-M33*L33 -> -35203.84485 | Q33: 0.090301 | R33: =SUM(T14:T15) -> 0 | T33: =-R33*Q33 -> 0 | V33: =$G$33 -> 0.090301 | W33: =SUM(Y14:Y15) -> 0 | Y33: =-W33*V33 -> 0 | AA33: =$G$33 -> 0.090301 | AB33: =SUM(AD14:AD15) -> 0 | AD33: =-AB33*AA33 -> 0 | AH33: =$G$33 -> 0.090301 | AI33: =SUM(AK14:AK15) -> 0 | AK33: =-AI33*AH33 -> 0 | AM33: =$G$33 -> 0.090301 | AN33: =SUM(AP14:AP15) -> 0 | AP33: =-AN33*AM33 -> 0 | AT33: =$G$33 -> 0.090301 | AU33: =SUM(AW14:AW15) -> 0 | AW33: =-AU33*AT33 -> 0 | AY33: =$G$33 -> 0.090301 | AZ33: =SUM(BB14:BB15) -> 0 | BB33: =-AZ33*AY33 -> 0 | BF33: =$G$33 -> 0.090301 | BG33: =SUM(BI14:BI15) -> 0 | BI33: =-BG33*BF33 -> 0 | BK33: =$G$33 -> 0.090301 | BL33: =SUM(BN14:BN15) -> 0 | BN33: =-BL33*BK33 -> 0 | BR33: =$G$33 -> 0.090301 | BS33: =SUM(BU14:BU15) -> 0 | BU33: =-BS33*BR33 -> 0 | BW33: =$G$33 -> 0.090301 | BX33: =SUM(BZ14:BZ15) -> 0 | BZ33: =-BX33*BW33 -> 0 | CD33: =$G$33 -> 0.090301 | CE33: =SUM(CG14:CG15) -> 0 | CG33: =-CE33*CD33 -> 0 | CI33: =$G$33 -> 0.090301 | CJ33: =SUM(CL14:CL15) -> 0 | CL33: =-CJ33*CI33 -> 0 | CP33: =$G$33 -> 0.090301 | CQ33: =SUM(CS14:CS15) -> 0 | CS33: =-CQ33*CP33 -> 0 | CU33: =$G$33 -> 0.090301 | CV33: =SUM(CX14:CX15) -> 0 | CX33: =-CV33*CU33 -> 0
A34: Dividend tax credit eligible | B34: 0.2073 | C34: =E12 -> 73500 | E34: =-C34*B34 -> -15236.55 | G34: 0.1502 | H34: =SUM(J12:J13) -> 507150 | J34: =-H34*G34 -> -76173.93 | L34: 0.1502 | M34: =SUM(O12:O13) -> 138000 | O34: =-M34*L34 -> -20727.6 | Q34: 0.1502 | R34: =SUM(T12:T13) -> 0 | T34: =-R34*Q34 -> 0 | V34: 0.1502 | W34: =SUM(Y12:Y13) -> 0 | Y34: =-W34*V34 -> 0 | AA34: 0.1502 | AB34: =SUM(AD12:AD13) -> 0 | AD34: =-AB34*AA34 -> 0 | AH34: 0.1502 | AI34: =SUM(AK12:AK13) -> 0 | AK34: =-AI34*AH34 -> 0 | AM34: 0.1502 | AN34: =SUM(AP12:AP13) -> 0 | AP34: =-AN34*AM34 -> 0 | AT34: 0.1502 | AU34: =SUM(AW12:AW13) -> 0 | AW34: =-AU34*AT34 -> 0 | AY34: 0.1502 | AZ34: =SUM(BB12:BB13) -> 0 | BB34: =-AZ34*AY34 -> 0 | BF34: 0.1502 | BG34: =SUM(BI12:BI13) -> 0 | BI34: =-BG34*BF34 -> 0 | BK34: 0.1502 | BL34: =SUM(BN12:BN13) -> 0 | BN34: =-BL34*BK34 -> 0 | BR34: 0.1502 | BS34: =SUM(BU12:BU13) -> 0 | BU34: =-BS34*BR34 -> 0 | BW34: 0.1502 | BX34: =SUM(BZ12:BZ13) -> 0 | BZ34: =-BX34*BW34 -> 0 | CD34: 0.1502 | CE34: =SUM(CG12:CG13) -> 0 | CG34: =-CE34*CD34 -> 0 | CI34: 0.1502 | CJ34: =SUM(CL12:CL13) -> 0 | CL34: =-CJ34*CI34 -> 0 | CP34: 0.1502 | CQ34: =SUM(CS12:CS13) -> 0 | CS34: =-CQ34*CP34 -> 0 | CU34: 0.1502 | CV34: =SUM(CX12:CX13) -> 0 | CX34: =-CV34*CU34 -> 0
A35: Donation tax credits | Y35: =-(+MIN(200,Input!G35)*0.15+0.33*(MIN(IF(Input!G35-200<=0,0,Input!G35-200),IF($Y19>200000,$Y19-200000,0)))+0.29*(IF(Input!G35-200-MIN(IF(Input!G35-200<=0,0,Input!G35-200),IF($Y19>200000,$Y19-200000,0))>0,Input!G35-200-MIN(IF(Input!G35-200<=0,0,Input!G35-200),IF($Y19>200000,$Y19-200000,0)),0))) -> 0 | AD35: =-(+MIN(200,Input!G35)*0.15+0.33*(MIN(IF(Input!G35-200<=0,0,Input!G35-200),IF($AD19>200000,$AD19-200000,0)))+0.29*(IF(Input!G35-200-MIN(IF(Input!G35-200<=0,0,Input!G35-200),IF($AD19>200000,$AD19-200000,0))>0,Input!G35-200-MIN(IF(Input!G35-200<=0,0,Input!G35-200),IF($AD19>200000,$AD19-200000,0)),0))) -> 0 | AK35: =-(+MIN(200,Input!G35)*0.15+0.33*(MIN(IF(Input!G35-200<=0,0,Input!G35-200),IF($AK19>200000,$AK19-200000,0)))+0.29*(IF(Input!G35-200-MIN(IF(Input!G35-200<=0,0,Input!G35-200),IF($AK19>200000,$AK19-200000,0))>0,Input!G35-200-MIN(IF(Input!G35-200<=0,0,Input!G35-200),IF($AK19>200000,$AK19-200000,0)),0))) -> 0 | AP35: =-(+MIN(200,Input!G35)*0.15+0.33*(MIN(IF(Input!G35-200<=0,0,Input!G35-200),IF($AP19>200000,$AP19-200000,0)))+0.29*(IF(Input!G35-200-MIN(IF(Input!G35-200<=0,0,Input!G35-200),IF($AP19>200000,$AP19-200000,0))>0,Input!G35-200-MIN(IF(Input!G35-200<=0,0,Input!G35-200),IF($AP19>200000,$AP19-200000,0)),0))) -> 0 | AW35: =-(+MIN(200,Input!H35)*0.15+0.33*(MIN(IF(Input!H35-200<=0,0,Input!H35-200),IF($AW19>200000,$AW19-200000,0)))+0.29*(IF(Input!H35-200-MIN(IF(Input!H35-200<=0,0,Input!H35-200),IF($AW19>200000,$AW19-200000,0))>0,Input!H35-200-MIN(IF(Input!H35-200<=0,0,Input!H35-200),IF($AW19>200000,$AW19-200000,0)),0))) -> 0 | BB35: =-(+MIN(200,Input!H35)*0.15+0.33*(MIN(IF(Input!H35-200<=0,0,Input!H35-200),IF($BB19>200000,$BB19-200000,0)))+0.29*(IF(Input!H35-200-MIN(IF(Input!H35-200<=0,0,Input!H35-200),IF($BB19>200000,$BB19-200000,0))>0,Input!H35-200-MIN(IF(Input!H35-200<=0,0,Input!H35-200),IF($BB19>200000,$BB19-200000,0)),0))) -> 0 | BI35: =-(+MIN(200,Input!I35)*0.15+0.33*(MIN(IF(Input!I35-200<=0,0,Input!I35-200),IF($BI19>200000,$BI19-200000,0)))+0.29*(IF(Input!I35-200-MIN(IF(Input!I35-200<=0,0,Input!I35-200),IF($BI19>200000,$BI19-200000,0))>0,Input!I35-200-MIN(IF(Input!I35-200<=0,0,Input!I35-200),IF($BI19>200000,$BI19-200000,0)),0))) -> 0 | BN35: =-(+MIN(200,Input!I35)*0.15+0.33*(MIN(IF(Input!I35-200<=0,0,Input!I35-200),IF($BN19>200000,$BN19-200000,0)))+0.29*(IF(Input!I35-200-MIN(IF(Input!I35-200<=0,0,Input!I35-200),IF($BN19>200000,$BN19-200000,0))>0,Input!I35-200-MIN(IF(Input!I35-200<=0,0,Input!I35-200),IF($BN19>200000,$BN19-200000,0)),0))) -> 0 | BU35: =-(+MIN(200,Input!J35)*0.15+0.33*(MIN(IF(Input!J35-200<=0,0,Input!J35-200),IF($BU19>200000,$BU19-200000,0)))+0.29*(IF(Input!J35-200-MIN(IF(Input!J35-200<=0,0,Input!J35-200),IF($BU19>200000,$BU19-200000,0))>0,Input!J35-200-MIN(IF(Input!J35-200<=0,0,Input!J35-200),IF($BU19>200000,$BU19-200000,0)),0))) -> 0 | BZ35: =-(+MIN(200,Input!J35)*0.15+0.33*(MIN(IF(Input!J35-200<=0,0,Input!J35-200),IF($BZ19>200000,$BZ19-200000,0)))+0.29*(IF(Input!J35-200-MIN(IF(Input!J35-200<=0,0,Input!J35-200),IF($BZ19>200000,$BZ19-200000,0))>0,Input!J35-200-MIN(IF(Input!J35-200<=0,0,Input!J35-200),IF($BZ19>200000,$BZ19-200000,0)),0))) -> 0 | CG35: =-(+MIN(200,Input!K35)*0.15+0.33*(MIN(IF(Input!K35-200<=0,0,Input!K35-200),IF($CG19>200000,$CG19-200000,0)))+0.29*(IF(Input!K35-200-MIN(IF(Input!K35-200<=0,0,Input!K35-200),IF($CG19>200000,$CG19-200000,0))>0,Input!K35-200-MIN(IF(Input!K35-200<=0,0,Input!K35-200),IF($CG19>200000,$CG19-200000,0)),0))) -> 0 | CL35: =-(+MIN(200,Input!K35)*0.15+0.33*(MIN(IF(Input!K35-200<=0,0,Input!K35-200),IF($CL19>200000,$CL19-200000,0)))+0.29*(IF(Input!K35-200-MIN(IF(Input!K35-200<=0,0,Input!K35-200),IF($CL19>200000,$CL19-200000,0))>0,Input!K35-200-MIN(IF(Input!K35-200<=0,0,Input!K35-200),IF($CL19>200000,$CL19-200000,0)),0))) -> 0 | CS35: =-(+MIN(200,Input!L35)*0.15+0.33*(MIN(IF(Input!L35-200<=0,0,Input!L35-200),IF($CS19>200000,$CS19-200000,0)))+0.29*(IF(Input!L35-200-MIN(IF(Input!L35-200<=0,0,Input!L35-200),IF($CS19>200000,$CS19-200000,0))>0,Input!L35-200-MIN(IF(Input!L35-200<=0,0,Input!L35-200),IF($CS19>200000,$CS19-200000,0)),0))) -> 0 | CX35: =-(+MIN(200,Input!L35)*0.15+0.33*(MIN(IF(Input!L35-200<=0,0,Input!L35-200),IF($CX19>200000,$CX19-200000,0)))+0.29*(IF(Input!L35-200-MIN(IF(Input!L35-200<=0,0,Input!L35-200),IF($CX19>200000,$CX19-200000,0))>0,Input!L35-200-MIN(IF(Input!L35-200<=0,0,Input!L35-200),IF($CX19>200000,$CX19-200000,0)),0))) -> 0
A36: Tuition tax credits | Y36: =-Input!G36*0.15 -> 0 | AD36: =-Input!G36*0.15 -> 0 | AK36: =-Input!G36*0.15 -> 0 | AP36: =-Input!G36*0.15 -> 0 | AW36: =-Input!H36*0.15 -> 0 | BB36: =-Input!H36*0.15 -> 0 | BI36: =-Input!I36*0.15 -> 0 | BN36: =-Input!I36*0.15 -> 0 | BU36: =-Input!J36*0.15 -> 0 | BZ36: =-Input!J36*0.15 -> 0 | CG36: =-Input!K36*0.15 -> 0 | CL36: =-Input!K36*0.15 -> 0 | CS36: =-Input!L36*0.15 -> 0 | CX36: =-Input!L36*0.15 -> 0
A37: Other credits | Y37: =-Input!G37*0.15 -> 0 | AD37: =-Input!G37*0.15 -> 0 | AK37: =-Input!G37*0.15 -> 0 | AP37: =-Input!G37*0.15 -> 0 | AW37: =-Input!H37*0.15 -> 0 | BB37: =-Input!H37*0.15 -> 0 | BI37: =-Input!I37*0.15 -> 0 | BN37: =-Input!I37*0.15 -> 0 | BU37: =-Input!J37*0.15 -> 0 | BZ37: =-Input!J37*0.15 -> 0 | CG37: =-Input!K37*0.15 -> 0 | CL37: =-Input!K37*0.15 -> 0 | CS37: =-Input!L37*0.15 -> 0 | CX37: =-Input!L37*0.15 -> 0
A38: Total credits | E38: =SUM(E31:E34) -> -16892.25 | J38: =SUM(J31:J34) -> -78037.08 | O38: =SUM(O31:O34) -> -57794.59485 | T38: =SUM(T31:T34) -> -2051.7 | Y38: =SUM(Y31:Y37) -> -2071.2 | AD38: =SUM(AD31:AD37) -> -2071.2 | AK38: =SUM(AK31:AK37) -> -2071.2 | AP38: =SUM(AP31:AP37) -> -2071.2 | AW38: =SUM(AW31:AW37) -> -2071.2 | BB38: =SUM(BB31:BB37) -> -2071.2 | BI38: =SUM(BI31:BI37) -> -2071.2 | BN38: =SUM(BN31:BN37) -> -2071.2 | BU38: =SUM(BU31:BU37) -> -2071.2 | BZ38: =SUM(BZ31:BZ37) -> -2071.2 | CG38: =SUM(CG31:CG37) -> -2071.2 | CL38: =SUM(CL31:CL37) -> -2071.2 | CS38: =SUM(CS31:CS37) -> -2071.2 | CX38: =SUM(CX31:CX37) -> -2071.2
A40: Total federal tax | E40: =IF((E38+E28)>0,(E38+E28),0) -> 2944.88 | J40: =IF((J38+J28)>0,(J38+J28),0) -> 68013.255 | O40: =IF((O38+O28)>0,(O38+O28),0) -> 95086.74015 | T40: =IF((T38+T28)>0,(T38+T28),0) -> 141639.135 | Y40: =IF((Y38+Y28)>0,(Y38+Y28),0) -> 0 | AD40: =IF((AD38+AD28)>0,(AD38+AD28),0) -> 0 | AK40: =IF((AK38+AK28)>0,(AK38+AK28),0) -> 0 | AP40: =IF((AP38+AP28)>0,(AP38+AP28),0) -> 0 | AW40: =IF((AW38+AW28)>0,(AW38+AW28),0) -> 0 | BB40: =IF((BB38+BB28)>0,(BB38+BB28),0) -> 0 | BI40: =IF((BI38+BI28)>0,(BI38+BI28),0) -> 0 | BN40: =IF((BN38+BN28)>0,(BN38+BN28),0) -> 0 | BU40: =IF((BU38+BU28)>0,(BU38+BU28),0) -> 0 | BZ40: =IF((BZ38+BZ28)>0,(BZ38+BZ28),0) -> 0 | CG40: =IF((CG38+CG28)>0,(CG38+CG28),0) -> 0 | CL40: =IF((CL38+CL28)>0,(CL38+CL28),0) -> 0 | CS40: =IF((CS38+CS28)>0,(CS38+CS28),0) -> 0 | CX40: =IF((CX38+CX28)>0,(CX38+CX28),0) -> 0
A42: Ontario Tax
B43: 0.0505 | D43: 39723 | E43: =IF(E$19>D43,D43*B43,E$19*B43) -> 2006.0115 | G43: 0.0505 | I43: 45142 | J43: =IF(J$19>=I43,I43*G43,J$19*G43) -> 2279.671 | L43: =G43 -> 0.0505 | M43: 0 | N43: 45142 | O43: =IF(O$19>=N43,N43*L43,O$19*L43) -> 2279.671 | Q43: =G43 -> 0.0505 | R43: 0 | S43: 45142 | T43: =IF(T$19>=S43,S43*Q43,T$19*Q43) -> 2279.671 | V43: =G43 -> 0.0505 | W43: 0 | X43: 45142 | Y43: =IF(Y$19>=X43,X43*V43,Y$19*V43) -> 0 | AA43: =G43 -> 0.0505 | AB43: 0 | AC43: 45142 | AD43: =IF(AD$19>=AC43,AC43*AA43,AD$19*AA43) -> 0 | AH43: =$G$43 -> 0.0505 | AI43: =$H$43 -> 0 | AJ43: =$I$43 -> 45142 | AK43: =IF(AK$19>=AJ43,AJ43*AH43,AK$19*AH43) -> 0 | AM43: =$G$43 -> 0.0505 | AN43: =$H$43 -> 0 | AO43: =$I$43 -> 45142 | AP43: =IF(AP$19>=AO43,AO43*AM43,AP$19*AM43) -> 0 | AT43: =$G$43 -> 0.0505 | AU43: =$H$43 -> 0 | AV43: =$I$43 -> 45142 | AW43: =IF(AW$19>=AV43,AV43*AT43,AW$19*AT43) -> 0 | AY43: =$G$43 -> 0.0505 | AZ43: =$H$43 -> 0 | BA43: =$I$43 -> 45142 | BB43: =IF(BB$19>=BA43,BA43*AY43,BB$19*AY43) -> 0 | BF43: =$G$43 -> 0.0505 | BG43: =$H$43 -> 0 | BH43: =$I$43 -> 45142 | BI43: =IF(BI$19>=BH43,BH43*BF43,BI$19*BF43) -> 0 | BK43: =$G$43 -> 0.0505 | BL43: =$H$43 -> 0 | BM43: =$I$43 -> 45142 | BN43: =IF(BN$19>=BM43,BM43*BK43,BN$19*BK43) -> 0 | BR43: =$G$43 -> 0.0505 | BS43: =$H$43 -> 0 | BT43: =$I$43 -> 45142 | BU43: =IF(BU$19>=BT43,BT43*BR43,BU$19*BR43) -> 0 | BW43: =$G$43 -> 0.0505 | BX43: =$H$43 -> 0 | BY43: =$I$43 -> 45142 | BZ43: =IF(BZ$19>=BY43,BY43*BW43,BZ$19*BW43) -> 0 | CD43: =$G$43 -> 0.0505 | CE43: =$H$43 -> 0 | CF43: =$I$43 -> 45142 | CG43: =IF(CG$19>=CF43,CF43*CD43,CG$19*CD43) -> 0 | CI43: =$G$43 -> 0.0505 | CJ43: =$H$43 -> 0 | CK43: =$I$43 -> 45142 | CL43: =IF(CL$19>=CK43,CK43*CI43,CL$19*CI43) -> 0 | CP43: =$G$43 -> 0.0505 | CQ43: =$H$43 -> 0 | CR43: =$I$43 -> 45142 | CS43: =IF(CS$19>=CR43,CR43*CP43,CS$19*CP43) -> 0 | CU43: =$G$43 -> 0.0505 | CV43: =$H$43 -> 0 | CW43: =$I$43 -> 45142 | CX43: =IF(CX$19>=CW43,CW43*CU43,CX$19*CU43) -> 0
B44: 0.0915 | C44: 39724 | D44: 79448 | E44: =IF(E$19>D44,(D44-C44)*B44,IF(E$19<D44,IF(E$19>C44,(E$19-C44)*B44,0),0)) -> 3634.746 | G44: 0.0915 | H44: =+I43+1 -> 45143 | I44: 90287 | J44: =IF(J$19>=I44,(I44-H44)*G44,IF(J$19<I44,IF(J$19>H44,(J$19-H44)*G44,0),0)) -> 4130.676 | L44: 0.0915 | M44: 45143 | N44: 90287 | O44: =IF(O$19>=N44,(N44-M44)*L44,IF(O$19<N44,IF(O$19>M44,(O$19-M44)*L44,0),0)) -> 4130.676 | Q44: 0.0915 | R44: 45143 | S44: 90287 | T44: =IF(T$19>=S44,(S44-R44)*Q44,IF(T$19<S44,IF(T$19>R44,(T$19-R44)*Q44,0),0)) -> 4130.676 | V44: 0.0915 | W44: 45143 | X44: 90287 | Y44: =IF(Y$19>=X44,(X44-W44)*V44,IF(Y$19<X44,IF(Y$19>W44,(Y$19-W44)*V44,0),0)) -> 0 | AA44: 0.0915 | AB44: 45143 | AC44: 90287 | AD44: =IF(AD$19>=AC44,(AC44-AB44)*AA44,IF(AD$19<AC44,IF(AD$19>AB44,(AD$19-AB44)*AA44,0),0)) -> 0 | AH44: =$G$44 -> 0.0915 | AI44: =$H$44 -> 45143 | AJ44: =$I$44 -> 90287 | AK44: =IF(AK$19>=AJ44,(AJ44-AI44)*AH44,IF(AK$19<AJ44,IF(AK$19>AI44,(AK$19-AI44)*AH44,0),0)) -> 0 | AM44: =$G$44 -> 0.0915 | AN44: =$H$44 -> 45143 | AO44: =$I$44 -> 90287 | AP44: =IF(AP$19>=AO44,(AO44-AN44)*AM44,IF(AP$19<AO44,IF(AP$19>AN44,(AP$19-AN44)*AM44,0),0)) -> 0 | AT44: =$G$44 -> 0.0915 | AU44: =$H$44 -> 45143 | AV44: =$I$44 -> 90287 | AW44: =IF(AW$19>=AV44,(AV44-AU44)*AT44,IF(AW$19<AV44,IF(AW$19>AU44,(AW$19-AU44)*AT44,0),0)) -> 0 | AY44: =$G$44 -> 0.0915 | AZ44: =$H$44 -> 45143 | BA44: =$I$44 -> 90287 | BB44: =IF(BB$19>=BA44,(BA44-AZ44)*AY44,IF(BB$19<BA44,IF(BB$19>AZ44,(BB$19-AZ44)*AY44,0),0)) -> 0 | BF44: =$G$44 -> 0.0915 | BG44: =$H$44 -> 45143 | BH44: =$I$44 -> 90287 | BI44: =IF(BI$19>=BH44,(BH44-BG44)*BF44,IF(BI$19<BH44,IF(BI$19>BG44,(BI$19-BG44)*BF44,0),0)) -> 0 | BK44: =$G$44 -> 0.0915 | BL44: =$H$44 -> 45143 | BM44: =$I$44 -> 90287 | BN44: =IF(BN$19>=BM44,(BM44-BL44)*BK44,IF(BN$19<BM44,IF(BN$19>BL44,(BN$19-BL44)*BK44,0),0)) -> 0 | BR44: =$G$44 -> 0.0915 | BS44: =$H$44 -> 45143 | BT44: =$I$44 -> 90287 | BU44: =IF(BU$19>=BT44,(BT44-BS44)*BR44,IF(BU$19<BT44,IF(BU$19>BS44,(BU$19-BS44)*BR44,0),0)) -> 0 | BW44: =$G$44 -> 0.0915 | BX44: =$H$44 -> 45143 | BY44: =$I$44 -> 90287 | BZ44: =IF(BZ$19>=BY44,(BY44-BX44)*BW44,IF(BZ$19<BY44,IF(BZ$19>BX44,(BZ$19-BX44)*BW44,0),0)) -> 0 | CD44: =$G$44 -> 0.0915 | CE44: =$H$44 -> 45143 | CF44: =$I$44 -> 90287 | CG44: =IF(CG$19>=CF44,(CF44-CE44)*CD44,IF(CG$19<CF44,IF(CG$19>CE44,(CG$19-CE44)*CD44,0),0)) -> 0 | CI44: =$G$44 -> 0.0915 | CJ44: =$H$44 -> 45143 | CK44: =$I$44 -> 90287 | CL44: =IF(CL$19>=CK44,(CK44-CJ44)*CI44,IF(CL$19<CK44,IF(CL$19>CJ44,(CL$19-CJ44)*CI44,0),0)) -> 0 | CP44: =$G$44 -> 0.0915 | CQ44: =$H$44 -> 45143 | CR44: =$I$44 -> 90287 | CS44: =IF(CS$19>=CR44,(CR44-CQ44)*CP44,IF(CS$19<CR44,IF(CS$19>CQ44,(CS$19-CQ44)*CP44,0),0)) -> 0 | CU44: =$G$44 -> 0.0915 | CV44: =$H$44 -> 45143 | CW44: =$I$44 -> 90287 | CX44: =IF(CX$19>=CW44,(CW44-CV44)*CU44,IF(CX$19<CW44,IF(CX$19>CV44,(CX$19-CV44)*CU44,0),0)) -> 0
B45: 0.1116 | C45: 79448 | D45: 509000 | E45: =IF(E$19>D45,(D45-C45)*B45,IF(E$19<D45,IF(E$19>C45,(E$19-C45)*B45,0),0)) -> 2453.1912 | G45: 0.1116 | H45: =+I44+1 -> 90288 | I45: 150000 | J45: =IF(J$19>=I45,(I45-H45)*G45,IF(J$19<I45,IF(J$19>H45,(J$19-H45)*G45,0),0)) -> 6663.8592 | L45: 0.1116 | M45: 90288 | N45: 150000 | O45: =IF(O$19>=N45,(N45-M45)*L45,IF(O$19<N45,IF(O$19>M45,(O$19-M45)*L45,0),0)) -> 6663.8592 | Q45: 0.1116 | R45: 90288 | S45: 150000 | T45: =IF(T$19>=S45,(S45-R45)*Q45,IF(T$19<S45,IF(T$19>R45,(T$19-R45)*Q45,0),0)) -> 6663.8592 | V45: 0.1116 | W45: 90288 | X45: 150000 | Y45: =IF(Y$19>=X45,(X45-W45)*V45,IF(Y$19<X45,IF(Y$19>W45,(Y$19-W45)*V45,0),0)) -> 0 | AA45: 0.1116 | AB45: 90288 | AC45: 150000 | AD45: =IF(AD$19>=AC45,(AC45-AB45)*AA45,IF(AD$19<AC45,IF(AD$19>AB45,(AD$19-AB45)*AA45,0),0)) -> 0 | AH45: =$G$45 -> 0.1116 | AI45: =$H$45 -> 90288 | AJ45: =$I$45 -> 150000 | AK45: =IF(AK$19>=AJ45,(AJ45-AI45)*AH45,IF(AK$19<AJ45,IF(AK$19>AI45,(AK$19-AI45)*AH45,0),0)) -> 0 | AM45: =$G$45 -> 0.1116 | AN45: =$H$45 -> 90288 | AO45: =$I$45 -> 150000 | AP45: =IF(AP$19>=AO45,(AO45-AN45)*AM45,IF(AP$19<AO45,IF(AP$19>AN45,(AP$19-AN45)*AM45,0),0)) -> 0 | AT45: =$G$45 -> 0.1116 | AU45: =$H$45 -> 90288 | AV45: =$I$45 -> 150000 | AW45: =IF(AW$19>=AV45,(AV45-AU45)*AT45,IF(AW$19<AV45,IF(AW$19>AU45,(AW$19-AU45)*AT45,0),0)) -> 0 | AY45: =$G$45 -> 0.1116 | AZ45: =$H$45 -> 90288 | BA45: =$I$45 -> 150000 | BB45: =IF(BB$19>=BA45,(BA45-AZ45)*AY45,IF(BB$19<BA45,IF(BB$19>AZ45,(BB$19-AZ45)*AY45,0),0)) -> 0 | BF45: =$G$45 -> 0.1116 | BG45: =$H$45 -> 90288 | BH45: =$I$45 -> 150000 | BI45: =IF(BI$19>=BH45,(BH45-BG45)*BF45,IF(BI$19<BH45,IF(BI$19>BG45,(BI$19-BG45)*BF45,0),0)) -> 0 | BK45: =$G$45 -> 0.1116 | BL45: =$H$45 -> 90288 | BM45: =$I$45 -> 150000 | BN45: =IF(BN$19>=BM45,(BM45-BL45)*BK45,IF(BN$19<BM45,IF(BN$19>BL45,(BN$19-BL45)*BK45,0),0)) -> 0 | BR45: =$G$45 -> 0.1116 | BS45: =$H$45 -> 90288 | BT45: =$I$45 -> 150000 | BU45: =IF(BU$19>=BT45,(BT45-BS45)*BR45,IF(BU$19<BT45,IF(BU$19>BS45,(BU$19-BS45)*BR45,0),0)) -> 0 | BW45: =$G$45 -> 0.1116 | BX45: =$H$45 -> 90288 | BY45: =$I$45 -> 150000 | BZ45: =IF(BZ$19>=BY45,(BY45-BX45)*BW45,IF(BZ$19<BY45,IF(BZ$19>BX45,(BZ$19-BX45)*BW45,0),0)) -> 0 | CD45: =$G$45 -> 0.1116 | CE45: =$H$45 -> 90288 | CF45: =$I$45 -> 150000 | CG45: =IF(CG$19>=CF45,(CF45-CE45)*CD45,IF(CG$19<CF45,IF(CG$19>CE45,(CG$19-CE45)*CD45,0),0)) -> 0 | CI45: =$G$45 -> 0.1116 | CJ45: =$H$45 -> 90288 | CK45: =$I$45 -> 150000 | CL45: =IF(CL$19>=CK45,(CK45-CJ45)*CI45,IF(CL$19<CK45,IF(CL$19>CJ45,(CL$19-CJ45)*CI45,0),0)) -> 0 | CP45: =$G$45 -> 0.1116 | CQ45: =$H$45 -> 90288 | CR45: =$I$45 -> 150000 | CS45: =IF(CS$19>=CR45,(CR45-CQ45)*CP45,IF(CS$19<CR45,IF(CS$19>CQ45,(CS$19-CQ45)*CP45,0),0)) -> 0 | CU45: =$G$45 -> 0.1116 | CV45: =$H$45 -> 90288 | CW45: =$I$45 -> 150000 | CX45: =IF(CX$19>=CW45,(CW45-CV45)*CU45,IF(CX$19<CW45,IF(CX$19>CV45,(CX$19-CV45)*CU45,0),0)) -> 0
B46: 0.1316 | C46: 509001 | E46: =IF(E$19>C46,(E$19-C46)*B46,0) -> 0 | G46: 0.1216 | H46: =+I45+1 -> 150001 | I46: 220000 | J46: =IF(J$19>=I46,(I46-H46)*G46,IF(J$19<I46,IF(J$19>H46,(J$19-H46)*G46,0),0)) -> 8511.8784 | L46: 0.1216 | M46: 150001 | N46: 220000 | O46: =IF(O$19>=N46,(N46-M46)*L46,IF(O$19<N46,IF(O$19>M46,(O$19-M46)*L46,0),0)) -> 8511.8784 | Q46: 0.1216 | R46: 150001 | S46: 220000 | T46: =IF(T$19>=S46,(S46-R46)*Q46,IF(T$19<S46,IF(T$19>R46,(T$19-R46)*Q46,0),0)) -> 8511.8784 | V46: 0.1216 | W46: 150001 | X46: 220000 | Y46: =IF(Y$19>=X46,(X46-W46)*V46,IF(Y$19<X46,IF(Y$19>W46,(Y$19-W46)*V46,0),0)) -> 0 | AA46: 0.1216 | AB46: 150001 | AC46: 220000 | AD46: =IF(AD$19>=AC46,(AC46-AB46)*AA46,IF(AD$19<AC46,IF(AD$19>AB46,(AD$19-AB46)*AA46,0),0)) -> 0 | AH46: =$G$46 -> 0.1216 | AI46: =$H$46 -> 150001 | AJ46: =$I$46 -> 220000 | AK46: =IF(AK$19>=AJ46,(AJ46-AI46)*AH46,IF(AK$19<AJ46,IF(AK$19>AI46,(AK$19-AI46)*AH46,0),0)) -> 0 | AM46: =$G$46 -> 0.1216 | AN46: =$H$46 -> 150001 | AO46: =$I$46 -> 220000 | AP46: =IF(AP$19>=AO46,(AO46-AN46)*AM46,IF(AP$19<AO46,IF(AP$19>AN46,(AP$19-AN46)*AM46,0),0)) -> 0 | AT46: =$G$46 -> 0.1216 | AU46: =$H$46 -> 150001 | AV46: =$I$46 -> 220000 | AW46: =IF(AW$19>=AV46,(AV46-AU46)*AT46,IF(AW$19<AV46,IF(AW$19>AU46,(AW$19-AU46)*AT46,0),0)) -> 0 | AY46: =$G$46 -> 0.1216 | AZ46: =$H$46 -> 150001 | BA46: =$I$46 -> 220000 | BB46: =IF(BB$19>=BA46,(BA46-AZ46)*AY46,IF(BB$19<BA46,IF(BB$19>AZ46,(BB$19-AZ46)*AY46,0),0)) -> 0 | BF46: =$G$46 -> 0.1216 | BG46: =$H$46 -> 150001 | BH46: =$I$46 -> 220000 | BI46: =IF(BI$19>=BH46,(BH46-BG46)*BF46,IF(BI$19<BH46,IF(BI$19>BG46,(BI$19-BG46)*BF46,0),0)) -> 0 | BK46: =$G$46 -> 0.1216 | BL46: =$H$46 -> 150001 | BM46: =$I$46 -> 220000 | BN46: =IF(BN$19>=BM46,(BM46-BL46)*BK46,IF(BN$19<BM46,IF(BN$19>BL46,(BN$19-BL46)*BK46,0),0)) -> 0 | BR46: =$G$46 -> 0.1216 | BS46: =$H$46 -> 150001 | BT46: =$I$46 -> 220000 | BU46: =IF(BU$19>=BT46,(BT46-BS46)*BR46,IF(BU$19<BT46,IF(BU$19>BS46,(BU$19-BS46)*BR46,0),0)) -> 0 | BW46: =$G$46 -> 0.1216 | BX46: =$H$46 -> 150001 | BY46: =$I$46 -> 220000 | BZ46: =IF(BZ$19>=BY46,(BY46-BX46)*BW46,IF(BZ$19<BY46,IF(BZ$19>BX46,(BZ$19-BX46)*BW46,0),0)) -> 0 | CD46: =$G$46 -> 0.1216 | CE46: =$H$46 -> 150001 | CF46: =$I$46 -> 220000 | CG46: =IF(CG$19>=CF46,(CF46-CE46)*CD46,IF(CG$19<CF46,IF(CG$19>CE46,(CG$19-CE46)*CD46,0),0)) -> 0 | CI46: =$G$46 -> 0.1216 | CJ46: =$H$46 -> 150001 | CK46: =$I$46 -> 220000 | CL46: =IF(CL$19>=CK46,(CK46-CJ46)*CI46,IF(CL$19<CK46,IF(CL$19>CJ46,(CL$19-CJ46)*CI46,0),0)) -> 0 | CP46: =$G$46 -> 0.1216 | CQ46: =$H$46 -> 150001 | CR46: =$I$46 -> 220000 | CS46: =IF(CS$19>=CR46,(CR46-CQ46)*CP46,IF(CS$19<CR46,IF(CS$19>CQ46,(CS$19-CQ46)*CP46,0),0)) -> 0 | CU46: =$G$46 -> 0.1216 | CV46: =$H$46 -> 150001 | CW46: =$I$46 -> 220000 | CX46: =IF(CX$19>=CW46,(CW46-CV46)*CU46,IF(CX$19<CW46,IF(CX$19>CV46,(CX$19-CV46)*CU46,0),0)) -> 0
G47: 0.1316 | H47: =+I46+1 -> 220001 | J47: =IF(J$19>H47,(J$19-H47)*G47,0) -> 37788.8084 | L47: 0.1316 | M47: 220001 | N47: 0 | O47: =IF(O$19>M47,(O$19-M47)*L47,0) -> 40512.9284 | Q47: 0.1316 | R47: 220001 | S47: 0 | T47: =IF(T$19>R47,(T$19-R47)*Q47,0) -> 36847.8684 | V47: 0.1316 | W47: 220001 | X47: 0 | Y47: =IF(Y$19>W47,(Y$19-W47)*V47,0) -> 0 | AA47: 0.1316 | AB47: 220001 | AC47: 0 | AD47: =IF(AD$19>AB47,(AD$19-AB47)*AA47,0) -> 0 | AH47: =$G$47 -> 0.1316 | AI47: =$H$47 -> 220001 | AJ47: =$I$47 -> 0 | AK47: =IF(AK$19>AI47,(AK$19-AI47)*AH47,0) -> 0 | AM47: =$G$47 -> 0.1316 | AN47: =$H$47 -> 220001 | AO47: =$I$47 -> 0 | AP47: =IF(AP$19>AN47,(AP$19-AN47)*AM47,0) -> 0 | AT47: =$G$47 -> 0.1316 | AU47: =$H$47 -> 220001 | AV47: =$I$47 -> 0 | AW47: =IF(AW$19>AU47,(AW$19-AU47)*AT47,0) -> 0 | AY47: =$G$47 -> 0.1316 | AZ47: =$H$47 -> 220001 | BA47: =$I$47 -> 0 | BB47: =IF(BB$19>AZ47,(BB$19-AZ47)*AY47,0) -> 0 | BF47: =$G$47 -> 0.1316 | BG47: =$H$47 -> 220001 | BH47: =$I$47 -> 0 | BI47: =IF(BI$19>BG47,(BI$19-BG47)*BF47,0) -> 0 | BK47: =$G$47 -> 0.1316 | BL47: =$H$47 -> 220001 | BM47: =$I$47 -> 0 | BN47: =IF(BN$19>BL47,(BN$19-BL47)*BK47,0) -> 0 | BR47: =$G$47 -> 0.1316 | BS47: =$H$47 -> 220001 | BT47: =$I$47 -> 0 | BU47: =IF(BU$19>BS47,(BU$19-BS47)*BR47,0) -> 0 | BW47: =$G$47 -> 0.1316 | BX47: =$H$47 -> 220001 | BY47: =$I$47 -> 0 | BZ47: =IF(BZ$19>BX47,(BZ$19-BX47)*BW47,0) -> 0 | CD47: =$G$47 -> 0.1316 | CE47: =$H$47 -> 220001 | CF47: =$I$47 -> 0 | CG47: =IF(CG$19>CE47,(CG$19-CE47)*CD47,0) -> 0 | CI47: =$G$47 -> 0.1316 | CJ47: =$H$47 -> 220001 | CK47: =$I$47 -> 0 | CL47: =IF(CL$19>CJ47,(CL$19-CJ47)*CI47,0) -> 0 | CP47: =$G$47 -> 0.1316 | CQ47: =$H$47 -> 220001 | CR47: =$I$47 -> 0 | CS47: =IF(CS$19>CQ47,(CS$19-CQ47)*CP47,0) -> 0 | CU47: =$G$47 -> 0.1316 | CV47: =$H$47 -> 220001 | CW47: =$I$47 -> 0 | CX47: =IF(CX$19>CV47,(CX$19-CV47)*CU47,0) -> 0
A49: Base Ontario tax | E49: =SUM(E43:E46) -> 8093.9487 | J49: =SUM(J43:J48) -> 59374.893 | N49: 0 | O49: =SUM(O43:O48) -> 62099.013 | T49: =SUM(T43:T48) -> 58433.953 | Y49: =SUM(Y43:Y48) -> 0 | AD49: =SUM(AD43:AD48) -> 0 | AK49: =SUM(AK43:AK48) -> 0 | AP49: =SUM(AP43:AP48) -> 0 | AW49: =SUM(AW43:AW48) -> 0 | BB49: =SUM(BB43:BB48) -> 0 | BI49: =SUM(BI43:BI48) -> 0 | BN49: =SUM(BN43:BN48) -> 0 | BU49: =SUM(BU43:BU48) -> 0 | BZ49: =SUM(BZ43:BZ48) -> 0 | CG49: =SUM(CG43:CG48) -> 0 | CL49: =SUM(CL43:CL48) -> 0 | CS49: =SUM(CS43:CS48) -> 0 | CX49: =SUM(CX43:CX48) -> 0
A51: Ontario credits
A53: Personal tax credit | B53: 0.0505 | C53: 9574 | E53: =-C53*B53 -> -483.487 | H53: 0.0505 | I53: 10880 | J53: =-I53*H53 -> -549.44 | M53: =H53 -> 0.0505 | N53: 10880 | O53: =-N53*M53 -> -549.44 | R53: =H53 -> 0.0505 | S53: 10880 | T53: =-S53*R53 -> -549.44 | W53: =H53 -> 0.0505 | X53: 10880 | Y53: =-X53*W53 -> -549.44 | AB53: =H53 -> 0.0505 | AC53: 10880 | AD53: =-AC53*AB53 -> -549.44 | AI53: =$H$53 -> 0.0505 | AJ53: =$I$53 -> 10880 | AK53: =-AJ53*AI53 -> -549.44 | AN53: =$H$53 -> 0.0505 | AO53: =$I$53 -> 10880 | AP53: =-AO53*AN53 -> -549.44 | AU53: =$H$53 -> 0.0505 | AV53: =$I$53 -> 10880 | AW53: =-AV53*AU53 -> -549.44 | AZ53: =$H$53 -> 0.0505 | BA53: =$I$53 -> 10880 | BB53: =-BA53*AZ53 -> -549.44 | BG53: =$H$53 -> 0.0505 | BH53: =$I$53 -> 10880 | BI53: =-BH53*BG53 -> -549.44 | BL53: =$H$53 -> 0.0505 | BM53: =$I$53 -> 10880 | BN53: =-BM53*BL53 -> -549.44 | BS53: =$H$53 -> 0.0505 | BT53: =$I$53 -> 10880 | BU53: =-BT53*BS53 -> -549.44 | BX53: =$H$53 -> 0.0505 | BY53: =$I$53 -> 10880 | BZ53: =-BY53*BX53 -> -549.44 | CE53: =$H$53 -> 0.0505 | CF53: =$I$53 -> 10880 | CG53: =-CF53*CE53 -> -549.44 | CJ53: =$H$53 -> 0.0505 | CK53: =$I$53 -> 10880 | CL53: =-CK53*CJ53 -> -549.44 | CQ53: =$H$53 -> 0.0505 | CR53: =$I$53 -> 10880 | CS53: =-CR53*CQ53 -> -549.44 | CV53: =$H$53 -> 0.0505 | CW53: =$I$53 -> 10880 | CX53: =-CW53*CV53 -> -549.44
A54: Donation tax credits | B54: 0.045 | C54: =E14+E15 -> 0 | E54: =-C54*B54 -> 0 | Y54: =-(+MIN(200,Input!G35)*0.0505+0.1116*(IF(Input!G35<=200,0,MAX(IF(Input!G35-200<=0,0,Input!G35-200),200)))) -> 0 | AD54: =-(+MIN(200,Input!G35)*0.0505+0.1116*(IF(Input!G35<=200,0,MAX(IF(Input!G35-200<=0,0,Input!G35-200),200)))) -> 0 | AK54: =-(+MIN(200,Input!G35)*0.0505+0.1116*(IF(Input!G35<=200,0,MAX(IF(Input!G35-200<=0,0,Input!G35-200),200)))) -> 0 | AP54: =-(+MIN(200,Input!G35)*0.0505+0.1116*(IF(Input!G35<=200,0,MAX(IF(Input!G35-200<=0,0,Input!G35-200),200)))) -> 0 | AW54: =-(+MIN(200,Input!H35)*0.0505+0.1116*(IF(Input!H35<=200,0,MAX(IF(Input!H35-200<=0,0,Input!H35-200),200)))) -> 0 | BB54: =-(+MIN(200,Input!H35)*0.0505+0.1116*(IF(Input!H35<=200,0,MAX(IF(Input!H35-200<=0,0,Input!H35-200),200)))) -> 0 | BI54: =-(+MIN(200,Input!I35)*0.0505+0.1116*(IF(Input!I35<=200,0,MAX(IF(Input!I35-200<=0,0,Input!I35-200),200)))) -> 0 | BN54: =-(+MIN(200,Input!I35)*0.0505+0.1116*(IF(Input!I35<=200,0,MAX(IF(Input!I35-200<=0,0,Input!I35-200),200)))) -> 0 | BU54: =-(+MIN(200,Input!J35)*0.0505+0.1116*(IF(Input!J35<=200,0,MAX(IF(Input!J35-200<=0,0,Input!J35-200),200)))) -> 0 | BZ54: =-(+MIN(200,Input!J35)*0.0505+0.1116*(IF(Input!J35<=200,0,MAX(IF(Input!J35-200<=0,0,Input!J35-200),200)))) -> 0 | CG54: =-(+MIN(200,Input!K35)*0.0505+0.1116*(IF(Input!K35<=200,0,MAX(IF(Input!K35-200<=0,0,Input!K35-200),200)))) -> 0 | CL54: =-(+MIN(200,Input!K35)*0.0505+0.1116*(IF(Input!K35<=200,0,MAX(IF(Input!K35-200<=0,0,Input!K35-200),200)))) -> 0 | CS54: =-(+MIN(200,Input!L35)*0.0505+0.1116*(IF(Input!L35<=200,0,MAX(IF(Input!L35-200<=0,0,Input!L35-200),200)))) -> 0 | CX54: =-(+MIN(200,Input!L35)*0.0505+0.1116*(IF(Input!L35<=200,0,MAX(IF(Input!L35-200<=0,0,Input!L35-200),200)))) -> 0
A55: Other Ontario Credits | Y55: =-Input!G38*0.0505 -> 0 | AD55: =-Input!G38*0.0505 -> 0 | AK55: =-Input!G38*0.0505 -> 0 | AP55: =-Input!G38*0.0505 -> 0 | AW55: =-Input!H38*0.0505 -> 0 | BB55: =-Input!H38*0.0505 -> 0 | BI55: =-Input!I38*0.0505 -> 0 | BN55: =-Input!I38*0.0505 -> 0 | BU55: =-Input!J38*0.0505 -> 0 | BZ55: =-Input!J38*0.0505 -> 0 | CG55: =-Input!K38*0.0505 -> 0 | CL55: =-Input!K38*0.0505 -> 0 | CS55: =-Input!W30*0.0505 -> 0 | CX55: =-Input!W30*0.0505 -> 0
A56: Ontario Tax Before Surtax | E56: =SUM(E49:E54) -> 7610.4617 | J56: =SUM(J49:J55) -> 58825.453 | O56: =SUM(O49:O54) -> 61549.573 | T56: =SUM(T49:T54) -> 57884.513 | Y56: =SUM(Y49:Y55) -> -549.44 | AD56: =SUM(AD49:AD55) -> -549.44 | AK56: =SUM(AK49:AK55) -> -549.44 | AP56: =SUM(AP49:AP55) -> -549.44 | AW56: =SUM(AW49:AW55) -> -549.44 | BB56: =SUM(BB49:BB55) -> -549.44 | BI56: =SUM(BI49:BI55) -> -549.44 | BN56: =SUM(BN49:BN55) -> -549.44 | BU56: =SUM(BU49:BU55) -> -549.44 | BZ56: =SUM(BZ49:BZ55) -> -549.44 | CG56: =SUM(CG49:CG55) -> -549.44 | CL56: =SUM(CL49:CL55) -> -549.44 | CS56: =SUM(CS49:CS55) -> -549.44 | CX56: =SUM(CX49:CX55) -> -549.44
A58: Surtax
B59: 0.2 | C59: 4289 | E59: =IF((E$56-C59)*B59>0,(E$56-C59)*B59,0) -> 664.29234 | G59: 0.2 | H59: 4875 | J59: =IF((J$56-H59)*G59>0,(J$56-H59)*G59,0) -> 10790.0906 | L59: =G59 -> 0.2 | M59: 4875 | O59: =IF((O$56-M59)*L59>0,(O$56-M59)*L59,0) -> 11334.9146 | Q59: =G59 -> 0.2 | R59: 4875 | T59: =IF((T$56-R59)*Q59>0,(T$56-R59)*Q59,0) -> 10601.9026 | V59: =G59 -> 0.2 | W59: 4875 | Y59: =IF((Y$56-W59)*V59>0,(Y$56-W59)*V59,0) -> 0 | AA59: =G59 -> 0.2 | AB59: 4875 | AD59: =IF((AD$56-AB59)*AA59>0,(AD$56-AB59)*AA59,0) -> 0 | AH59: =$G$59 -> 0.2 | AI59: =$H$59 -> 4875 | AK59: =IF((AK$56-AI59)*AH59>0,(AK$56-AI59)*AH59,0) -> 0 | AM59: =$G$59 -> 0.2 | AN59: =$H$59 -> 4875 | AP59: =IF((AP$56-AN59)*AM59>0,(AP$56-AN59)*AM59,0) -> 0 | AT59: =$G$59 -> 0.2 | AU59: =$H$59 -> 4875 | AW59: =IF((AW$56-AU59)*AT59>0,(AW$56-AU59)*AT59,0) -> 0 | AY59: =$G$59 -> 0.2 | AZ59: =$H$59 -> 4875 | BB59: =IF((BB$56-AZ59)*AY59>0,(BB$56-AZ59)*AY59,0) -> 0 | BF59: =$G$59 -> 0.2 | BG59: =$H$59 -> 4875 | BI59: =IF((BI$56-BG59)*BF59>0,(BI$56-BG59)*BF59,0) -> 0 | BK59: =$G$59 -> 0.2 | BL59: =$H$59 -> 4875 | BN59: =IF((BN$56-BL59)*BK59>0,(BN$56-BL59)*BK59,0) -> 0 | BR59: =$G$59 -> 0.2 | BS59: =$H$59 -> 4875 | BU59: =IF((BU$56-BS59)*BR59>0,(BU$56-BS59)*BR59,0) -> 0 | BW59: =$G$59 -> 0.2 | BX59: =$H$59 -> 4875 | BZ59: =IF((BZ$56-BX59)*BW59>0,(BZ$56-BX59)*BW59,0) -> 0 | CD59: =$G$59 -> 0.2 | CE59: =$H$59 -> 4875 | CG59: =IF((CG$56-CE59)*CD59>0,(CG$56-CE59)*CD59,0) -> 0 | CI59: =$G$59 -> 0.2 | CJ59: =$H$59 -> 4875 | CL59: =IF((CL$56-CJ59)*CI59>0,(CL$56-CJ59)*CI59,0) -> 0 | CP59: =$G$59 -> 0.2 | CQ59: =$H$59 -> 4875 | CS59: =IF((CS$56-CQ59)*CP59>0,(CS$56-CQ59)*CP59,0) -> 0 | CU59: =$G$59 -> 0.2 | CV59: =$H$59 -> 4875 | CX59: =IF((CX$56-CV59)*CU59>0,(CX$56-CV59)*CU59,0) -> 0
B60: 0.36 | C60: 5489 | E60: =IF((E$56-C60)*B60>0,(E$56-C60)*B60,0) -> 763.726212 | G60: 0.36 | H60: 6238 | J60: =IF((J$56-H60)*G60>0,(J$56-H60)*G60,0) -> 18931.48308 | L60: 0.36 | M60: 6238 | O60: =IF((O$56-M60)*L60>0,(O$56-M60)*L60,0) -> 19912.16628 | Q60: 0.36 | R60: 6238 | T60: =IF((T$56-R60)*Q60>0,(T$56-R60)*Q60,0) -> 18592.74468 | V60: 0.36 | W60: 6238 | Y60: =IF((Y$56-W60)*V60>0,(Y$56-W60)*V60,0) -> 0 | AA60: 0.36 | AB60: 6238 | AD60: =IF((AD$56-AB60)*AA60>0,(AD$56-AB60)*AA60,0) -> 0 | AH60: =$G$60 -> 0.36 | AI60: =$H$60 -> 6238 | AK60: =IF((AK$56-AI60)*AH60>0,(AK$56-AI60)*AH60,0) -> 0 | AM60: =$G$60 -> 0.36 | AN60: =$H$60 -> 6238 | AP60: =IF((AP$56-AN60)*AM60>0,(AP$56-AN60)*AM60,0) -> 0 | AT60: =$G$60 -> 0.36 | AU60: =$H$60 -> 6238 | AW60: =IF((AW$56-AU60)*AT60>0,(AW$56-AU60)*AT60,0) -> 0 | AY60: =$G$60 -> 0.36 | AZ60: =$H$60 -> 6238 | BB60: =IF((BB$56-AZ60)*AY60>0,(BB$56-AZ60)*AY60,0) -> 0 | BF60: =$G$60 -> 0.36 | BG60: =$H$60 -> 6238 | BI60: =IF((BI$56-BG60)*BF60>0,(BI$56-BG60)*BF60,0) -> 0 | BK60: =$G$60 -> 0.36 | BL60: =$H$60 -> 6238 | BN60: =IF((BN$56-BL60)*BK60>0,(BN$56-BL60)*BK60,0) -> 0 | BR60: =$G$60 -> 0.36 | BS60: =$H$60 -> 6238 | BU60: =IF((BU$56-BS60)*BR60>0,(BU$56-BS60)*BR60,0) -> 0 | BW60: =$G$60 -> 0.36 | BX60: =$H$60 -> 6238 | BZ60: =IF((BZ$56-BX60)*BW60>0,(BZ$56-BX60)*BW60,0) -> 0 | CD60: =$G$60 -> 0.36 | CE60: =$H$60 -> 6238 | CG60: =IF((CG$56-CE60)*CD60>0,(CG$56-CE60)*CD60,0) -> 0 | CI60: =$G$60 -> 0.36 | CJ60: =$H$60 -> 6238 | CL60: =IF((CL$56-CJ60)*CI60>0,(CL$56-CJ60)*CI60,0) -> 0 | CP60: =$G$60 -> 0.36 | CQ60: =$H$60 -> 6238 | CS60: =IF((CS$56-CQ60)*CP60>0,(CS$56-CQ60)*CP60,0) -> 0 | CU60: =$G$60 -> 0.36 | CV60: =$H$60 -> 6238 | CX60: =IF((CX$56-CV60)*CU60>0,(CX$56-CV60)*CU60,0) -> 0
A62: Dividend tax credit non-eligible | G62: 0.029863 | H62: =J14+J15 -> 0 | J62: =-H62*G62 -> 0 | L62: =G62 -> 0.029863 | M62: =O14+O15 -> 389850 | O62: =-M62*L62 -> -11642.09055 | Q62: =$G$62 -> 0.029863 | R62: =T14+T15 -> 0 | T62: =-R62*Q62 -> 0 | V62: =G62 -> 0.029863 | W62: =Y14+Y15 -> 0 | Y62: =-W62*V62 -> 0 | AA62: =G62 -> 0.029863 | AB62: =AD14+AD15 -> 0 | AD62: =-AB62*AA62 -> 0 | AH62: =$G$62 -> 0.029863 | AI62: =AK14+AK15 -> 0 | AK62: =-AI62*AH62 -> 0 | AM62: =$G$62 -> 0.029863 | AN62: =AP14+AP15 -> 0 | AP62: =-AN62*AM62 -> 0 | AT62: =$G$62 -> 0.029863 | AU62: =AW14+AW15 -> 0 | AW62: =-AU62*AT62 -> 0 | AY62: =$G$62 -> 0.029863 | AZ62: =BB14+BB15 -> 0 | BB62: =-AZ62*AY62 -> 0 | BF62: =$G$62 -> 0.029863 | BG62: =BI14+BI15 -> 0 | BI62: =-BG62*BF62 -> 0 | BK62: =$G$62 -> 0.029863 | BL62: =BN14+BN15 -> 0 | BN62: =-BL62*BK62 -> 0 | BR62: =$G$62 -> 0.029863 | BS62: =BU14+BU15 -> 0 | BU62: =-BS62*BR62 -> 0 | BW62: =$G$62 -> 0.029863 | BX62: =BZ14+BZ15 -> 0 | BZ62: =-BX62*BW62 -> 0 | CD62: =$G$62 -> 0.029863 | CE62: =CG14+CG15 -> 0 | CG62: =-CE62*CD62 -> 0 | CI62: =$G$62 -> 0.029863 | CJ62: =CL14+CL15 -> 0 | CL62: =-CJ62*CI62 -> 0 | CP62: =$G$62 -> 0.029863 | CQ62: =CS14+CS15 -> 0 | CS62: =-CQ62*CP62 -> 0 | CU62: =$G$62 -> 0.029863 | CV62: =CX14+CX15 -> 0 | CX62: =-CV62*CU62 -> 0
A63: Dividend tax credit eligible | G63: 0.1 | H63: =J12+J13 -> 507150 | J63: =-H63*G63 -> -50715 | L63: 0.1 | M63: =O12+O13 -> 138000 | O63: =-M63*L63 -> -13800 | Q63: 0.1 | R63: =T12+T13 -> 0 | T63: =-R63*Q63 -> 0 | V63: 0.1 | W63: =Y12+Y13 -> 0 | Y63: =-W63*V63 -> 0 | AA63: 0.1 | AB63: =AD12+AD13 -> 0 | AD63: =-AB63*AA63 -> 0 | AH63: 0.1 | AI63: =AK12+AK13 -> 0 | AK63: =-AI63*AH63 -> 0 | AM63: 0.1 | AN63: =AP12+AP13 -> 0 | AP63: =-AN63*AM63 -> 0 | AT63: 0.1 | AU63: =AW12+AW13 -> 0 | AW63: =-AU63*AT63 -> 0 | AY63: 0.1 | AZ63: =BB12+BB13 -> 0 | BB63: =-AZ63*AY63 -> 0 | BF63: 0.1 | BG63: =BI12+BI13 -> 0 | BI63: =-BG63*BF63 -> 0 | BK63: 0.1 | BL63: =BN12+BN13 -> 0 | BN63: =-BL63*BK63 -> 0 | BR63: 0.1 | BS63: =BU12+BU13 -> 0 | BU63: =-BS63*BR63 -> 0 | BW63: 0.1 | BX63: =BZ12+BZ13 -> 0 | BZ63: =-BX63*BW63 -> 0 | CD63: 0.1 | CE63: =CG12+CG13 -> 0 | CG63: =-CE63*CD63 -> 0 | CI63: 0.1 | CJ63: =CL12+CL13 -> 0 | CL63: =-CJ63*CI63 -> 0 | CP63: 0.1 | CQ63: =CS12+CS13 -> 0 | CS63: =-CQ63*CP63 -> 0 | CU63: 0.1 | CV63: =CX12+CX13 -> 0 | CX63: =-CV63*CU63 -> 0
A65: Total Ontario Tax | E65: =IF(SUM(E56:E62)>0,SUM(E56:E62),0) -> 9038.480252 | J65: =IF(SUM(J56:J63)>0,SUM(J56:J63),0) -> 37832.02668 | O65: =IF(SUM(O56:O63)>0,SUM(O56:O63),0) -> 67354.56333 | T65: =IF(SUM(T56:T63)>0,SUM(T56:T63),0) -> 87079.16028 | Y65: =IF(SUM(Y56:Y63)>0,SUM(Y56:Y63),0) -> 0 | AD65: =IF(SUM(AD56:AD63)>0,SUM(AD56:AD63),0) -> 0 | AK65: =IF(SUM(AK56:AK63)>0,SUM(AK56:AK63),0) -> 0 | AP65: =IF(SUM(AP56:AP63)>0,SUM(AP56:AP63),0) -> 0 | AW65: =IF(SUM(AW56:AW63)>0,SUM(AW56:AW63),0) -> 0 | BB65: =IF(SUM(BB56:BB63)>0,SUM(BB56:BB63),0) -> 0 | BI65: =IF(SUM(BI56:BI63)>0,SUM(BI56:BI63),0) -> 0 | BN65: =IF(SUM(BN56:BN63)>0,SUM(BN56:BN63),0) -> 0 | BU65: =IF(SUM(BU56:BU63)>0,SUM(BU56:BU63),0) -> 0 | BZ65: =IF(SUM(BZ56:BZ63)>0,SUM(BZ56:BZ63),0) -> 0 | CG65: =IF(SUM(CG56:CG63)>0,SUM(CG56:CG63),0) -> 0 | CL65: =IF(SUM(CL56:CL63)>0,SUM(CL56:CL63),0) -> 0 | CS65: =IF(SUM(CS56:CS63)>0,SUM(CS56:CS63),0) -> 0 | CX65: =IF(SUM(CX56:CX63)>0,SUM(CX56:CX63),0) -> 0
A67: Total personal taxes payable | E67: =E65+E40 -> 11983.36025 | J67: =J65+J40 -> 105845.2817 | O67: =O65+O40 -> 162441.3035 | T67: =T65+T40 -> 228718.2953 | Y67: =Y65+Y40 -> 0 | AD67: =AD65+AD40 -> 0 | AF67: =Y67-AD67 -> 0 | AK67: =AK65+AK40 -> 0 | AP67: =AP65+AP40 -> 0 | AR67: =AK67-AP67 -> 0 | AW67: =AW65+AW40 -> 0 | BB67: =BB65+BB40 -> 0 | BD67: =AW67-BB67 -> 0 | BI67: =BI65+BI40 -> 0 | BN67: =BN65+BN40 -> 0 | BP67: =BI67-BN67 -> 0 | BU67: =BU65+BU40 -> 0 | BZ67: =BZ65+BZ40 -> 0 | CB67: =BU67-BZ67 -> 0 | CG67: =CG65+CG40 -> 0 | CL67: =CL65+CL40 -> 0 | CN67: =CG67-CL67 -> 0 | CS67: =CS65+CS40 -> 0 | CX67: =CX65+CX40 -> 0 | CZ67: =CS67-CX67 -> 0 | DB67: =CN67+CB67+BP67+BD67+AR67+CZ67 -> 0
A70: Income available for distribution | Y70: =F1 -> 500000 | AD70: =K1 -> 0
A72: Salary | Y72: =Y10 -> 0 | AD72: =AD10 -> 0
A74: Corporate taxable income | Y74: =Y70-Y72 -> 500000 | AD74: =AD70-AD72 -> 0
A76: Corporate tax low rate | O76: =IF($F2>$F1,$F1*0.122,$F2*0.122) -> 61000 | Y76: =IF($F2>$Y74,$Y74*0.122,$F2*0.122) -> 61000 | AD76: =IF($F2>$Y74,$Y74*0.122,$F2*0.122) -> 61000
A77: Corporate tax high rate | E77: 26500 | J77: =J14/0.878*12.2%+J12/0.735*26.5% -> 132500 | O77: =IF(($F1-$F2)*0.265>0,($F1-$F2)*0.265,0) -> 0 | T77: =T14/0.878*12.2%+T12/0.735*26.5% -> 0 | Y77: =IF(($Y74-$F2)*0.265>0,($Y74-$F2)*0.265,0) -> 0 | AD77: =IF(($Y74-$F2)*0.265>0,($Y74-$F2)*0.265,0) -> 0
A78: Total corporate tax | O78: =SUM(O76:O77) -> 61000 | Y78: =SUM(Y76:Y77) -> 61000 | AD78: =SUM(AD76:AD77) -> 61000
A80: Total tax | E80: =E67+E77 -> 38483.36025 | J80: =J67+J77 -> 238345.2817 | O80: =O67+O77 -> 162441.3035 | T80: =T67+T77 -> 228718.2953 | Y80: =Y67+Y77 -> 0 | AD80: =AD67+AD77 -> 0
A82: Effective tax rate | J82: =J80/$F1 -> 0.4766905634 | O82: =O80/$F1 -> 0.324882607 | T82: =T80/$F1 -> 0.4574365906 | Y82: =Y80/$F1 -> 0 | AD82: =AD80/$F1 -> 0
A85: GRIP Calculation
A87: GRIP Openning Balance | O87: =$F3 -> 100000 | Y87: =$F3 -> 100000 | AD87: =$F3 -> 100000
A89: Addition to GRIP | O89: =IF(0.72*($F1-$F2)>0,0.72*($F1-$F2),0) -> 0 | Y89: =IF(0.72*($F1-$F2)>0,0.72*($F1-$F2),0) -> 0 | AD89: =IF(0.72*($F1-$F2)>0,0.72*($F1-$F2),0) -> 0
A91: Available GRIP | O91: =SUM(O87:O89) -> 100000 | Y91: =SUM(Y87:Y89) -> 100000 | AD91: =SUM(AD87:AD89) -> 100000
A93: Eligible Dividends Paid | O93: =O12 -> 100000 | Y93: =Y12 -> 0 | AD93: =AD12 -> 0
A95: GRIP Closing Balance | O95: =O91-O93 -> 0 | Y95: =Y91-Y93 -> 100000 | AD95: =AD91-AD93 -> 100000

Sheet Calc corp tax comb (hidden)
A1: Income | F1: =Input!C3 -> 500000
A2: SBD limit | F2: =Input!C4 -> 500000
A3: Openning Grip | F3: =Input!C5 -> 100000
A6: Corporate income tax calculation
A8: Income available for distribution | B8: =F1 -> 500000
A10: Salary | B10: =Input!M20 -> 0
A12: Corporate taxable income | B12: =B8-B10 -> 500000
A14: Corporate tax low rate | B14: =IF($F2>$B12,$B12*0.122,$F2*0.122) -> 61000
A15: Corporate tax high rate | B15: =IF(($B12-$F2)*0.265>0,($B12-$F2)*0.265,0) -> 0
A16: Total corporate tax | B16: =SUM(B14:B15) -> 61000
A18: GRIP Calculation
A20: GRIP Openning Balance | B20: =$F3 -> 100000
A22: Addition to GRIP | B22: =IF(0.72*($B12-$F2)>0,0.72*($B12-$F2),0) -> 0
A24: Available GRIP | B24: =SUM(B20:B22) -> 100000
A26: Eligible Dividends Paid | B26: =I35 -> 0
A28: GRIP Closing Balance | B28: =B24-B26 -> 100000
A31: Allocation of dividends between taxpayers
C32: Taxpayer 1 | D32: Taxpayer 2 | E32: Taxpayer 3 | F32: Taxpayer 4 | G32: Taxpayer 5 | H32: Taxpayer 6 | I32: Total
A33: Total dividends | C33: =Input!G21 -> 0 | D33: =Input!H21 -> 0 | E33: =Input!I21 -> 0 | F33: =Input!J21 -> 0 | G33: =Input!K21 -> 0 | H33: =+Input!L21 -> 0 | I33: =SUM(C33:H33) -> 0
A35: Eligible dividends | C35: =IF($B$24<$I$33,C33/$I$33*$B$24,C33) -> 0 | D35: =IF($B$24<$I$33,D33/$I$33*$B$24,D33) -> 0 | E35: 0 | F35: 0 | G35: 0 | H35: 0 | I35: =SUM(C35:H35) -> 0
A36: Non-eligible dividends | C36: =C33-C35 -> 0 | D36: 0 | E36: 0 | F36: 0 | G36: 0 | H36: 0 | I36: 0
A39: Calculation of cash remaining for distribution
A41: Corporate income before tax | B41: =F1 -> 500000 | D41: Total dividends paid | F41: =B44 -> 0
A43: Salaries paid | B43: ='Calc corp tax comb'!B10 -> 0 | D43: SBD | F43: =F2 -> 500000
A44: Dividends paid | B44: =I33 -> 0
D45: Salaries | F45: =B10 -> 0
A46: Corp taxes paid | B46: =B16 -> 61000
D47: Taxable income of corporation (Total income less salaries) | F47: =F1-F45 -> 500000
A48: Funds available for salary before income tax effect | B48: =B41-B43-B44-B46 -> 439000
D49: Dividend tax base low rate | F49: =MIN(F41/0.845,MIN(F43,F47)) -> 0
A50: Reduction in tax | B50: =B65-F51-F55 -> 61000
D51: Low tax paid on dividend | F51: =F49*0.122 -> 0
D53: Dividend tax base high rate | F53: =IF(F47>F49,(F41-F49*0.878)/0.735,0) -> 0
A54: Maximum salaries available | B54: =SUM(B48:B52) -> 500000
D55: High tax paid on dividend | F55: =F53*0.265 -> 0
A56: Income available for distribution | B56: =F1 -> 500000
A58: Salary | B58: =B10 -> 0
A60: Corporate taxable income | B60: =B56-B58 -> 500000
A63: Corporate tax low rate | B63: =IF($F2>$B60,$B60*0.122,$F2*0.122) -> 61000
A64: Corporate tax high rate | B64: =IF(($B60-$F2)*0.265>0,($B60-$F2)*0.265,0) -> 0
A65: Total corporate tax | B65: =SUM(B63:B64) -> 61000
A68: Funds left in the company | B68: =B8-B16-B10-I33 -> 439000
A70: Calculation of tax deferral
A72: Available GRIP | B72: =B28 -> 100000
A74: Eligible dividends highest tax rate | B74: =IF(B72<B68,B72*39.34%, B68*39.34%) -> 39340
A75: Non-eligible dividends tax rate | B75: =IF(B68>B72,(B68-B72)*47.74%,0) -> 161838.6
A77: Total tax deferral | B77: =SUM(B74:B75) -> 201178.6

Sheet MSW (hidden)
A1: Total Income of Corporation | C1: 900000
A2: SBD Limit | C2: 500000
A3: Openning GRIP | C3: 500000

Sheet Combinations (Summary) (hidden)
A1: Total Income of Corporation | C1: =Input!C3 -> 500000
A2: SBD Limit | C2: =Input!C4 -> 500000
A3: Openning GRIP | C3: =Input!C5 -> 100000
A7: Combination [select combination, optimal noneligible/eligible dividends paid to one shareholder with no other income]
B8: Actual amounts paid
A9: Salary | B9: =Calculation!Y10 -> 0
A10: Dividends | B10: =SUM(B11:B12) -> 0
A11: Eligible dividend | B11: =Calculation!Y12 -> 0
A12: Non-eligible dividend | B12: =Calculation!Y14 -> 0
A14: Cash retained in the company | B14: =ROUNDDOWN('Calc corp tax comb'!B68,0) -> 439000
A16: Corporate Tax High Rate Income | B16: =Calculation!Y77 -> 0
A17: Corporate Tax Low Rate Income | B17: =Calculation!Y76 -> 61000
A18: Personal tax | B18: =Calculation!Y67 -> 0
A19: Total Tax | C19: =SUM(B16:B18) -> 61000
A20: Overall Tax Rate | C20: =C19/C1 -> 0.122
A22: Income tax deferral | B22: =ROUND('Calc corp tax comb'!B77,0) -> 201179

Sheet Data for summary (hidden)
A3: Corporate tax | B3: =SUM(Input!B23:B24) -> 61000
A5: Personal tax | B5: =Input!B25 -> 0
A7: Total tax paid | B7: =SUM(B3:B5) -> 61000
A9: Savings from income splitting | B9: =Input!C32 -> 0
A11: Tax deferral | B11: =Input!C30 -> 201178

Sheet hidden (hidden)
A1: calculation4CadeskyTax
